Workbook

Sheet 1. Utility_Info_
AB1: Algoma Power Inc.
AB2: Atikokan Hydro Inc.
AB3: Attawapiskat Power Corporation
AB4: Bluewater Power Distribution Corp.
AB5: Brant County Power
AB6: Brantford Power Inc.
AB7: Burlington Hydro Inc.
AB8: Cambridge and North Dumfries Hydro
AB9: Canadian Niagara Power Inc. – Eastern Ontario Power/Fort Erie/Port Colborne
AB10: Centre Wellington Hydro Ltd.
AB11: Chapleau Public Utilities Corporation
AB12: COLLUS Power Corp.
AB13: Cooperative Hydro Embrun Inc.
AB14: E.L.K. Energy Inc.
C15: Utility Name | D15: Alectra Utilities Corporation - PowerStream Rate Zone | AB15: Enersource Hydro Mississauga Inc.
AB16: Entegrus Powerlines Inc.
C17: Assigned EB Number | D17: EB-2025-0252 | AB17: ENWIN Utilities Ltd.
AB18: Erie Thames Powerlines Corp.
C19: Name and Title | D19: Natalie Yeates, Director, Regulatory Affairs | AB19: Espanola Regional Hydro Distribution Corporation
AB20: Essex Powerlines Corporation
C21: Phone Number | D21: 416-617-1959 | AB21: Festival Hydro Inc.
AB22: Fort Albany Power Corporation
C23: Email Address | D23: natalie.yeates@alectrautilities.com | AB23: Fort Frances Power Corporation
AB24: Greater Sudbury Hydro Inc.
C25: Date | AB25: Grimsby Power Inc.
AB26: Guelph Hydro Electric Systems Inc.
C27: ICM Project | D27: 2021 - Rutherford Road Widening | AB27: Haldimand County Hydro Inc.
AB28: Halton Hills Hydro Inc.
AB29: Hearst Power Distribution Co. Ltd.
A30: Note: Drop-down lists are shaded blue; Input cells are shaded green.
AB32: Horizon Utilities Corporation
AB33: Hydro 2000 Inc.
AB34: Hydro Hawkesbury Inc.
AB35: Hydro One Brampton Networks Inc.
AB36: Hydro One Networks Inc.
AB37: Hydro One Remote Communities Inc.
AB38: Hydro Ottawa Limited
AB39: Innisfil Hydro Dist. Systems Limited
AB40: Kashechewan Power Corporation
AB41: Kenora Hydro Electric Corporation Ltd.
AB42: Kingston Hydro Corporation
AB43: Kitchener-Wilmot Hydro Inc.
AB44: Lakefront Utilities Inc.
AB45: Lakeland Power Distribution Ltd.
AB46: London Hydro Inc.
AB47: Midland Power Utility Corporation
AB48: Milton Hydro Distribution Inc.
AB49: Newmarket – Tay Power Distribution Ltd.
AB50: Niagara Peninsula Energy Inc.
AB51: Niagara-on-the-Lake Hydro Inc.
AB52: Norfolk Power Distribution Ltd.
AB53: North Bay Hydro Distribution Limited
AB54: Northern Ontario Wires Inc.
AB55: Oakville Hydro Distribution Inc.
AB56: Orangeville Hydro Limited
AB57: Orillia Power Distribution Corp.
AB58: Oshawa PUC Networks Inc.
AB59: Ottawa River Power Corporation
AB60: Parry Sound Power Corporation
AB61: Peterborough Distribution Inc.
AB62: PowerStream Inc.
AB63: PUC Distribution Inc.
AB64: Renfrew Hydro Inc.
AB65: Rideau St. Lawrence Distribution Inc.
AB66: St. Thomas Energy Inc.
AB67: Sioux Lookout Hydro Inc.
AB68: Thunder Bay Hydro Electricity Distribution
AB69: Tillsonburg Hydro Inc.
AB70: Toronto Hydro-Electric System Limited
AB71: Veridian Connections Inc.
AB72: Wasaga Distribution Inc.
AB73: Waterloo North Hydro Inc.
AB74: Welland Hydro Electric System Corp.
AB75: Wellington North Power Inc.
AB76: West Coast Huron Energy Inc.
AB77: Westario Power Inc.
AB78: Whitby Hydro Electric Corporation
AB79: Woodstock Hydro Services Inc.
AB81: Alectra Utilities Corporation - PowerStream Rate Zone
AB82: Alectra Utilities Corporation - Brampton Rate Zone
AB83: Alectra Utilities Corporation - Enersource Rate Zone
AB84: Alectra Utilities Corporation - Horizon Rate Zone
AB85: Alectra Utilities Corporation - Guelph Rate Zone

Sheet 2. ICM_Costs
G18: 2021 | I18: 2015 | K18: Total
B19: Sheet 2: ICM Capital Cost Data | G19: Audited Actual | I19: Forecast
B39: 1 | C39: Capital Costs
E40: Asset Type
C41: SYSTEM ACCESS | E41: Asset type must be selected to enable calculations | G41: =IF(ISBLANK(G19),"",G19) -> Audited Actual | I41: =IF(ISBLANK(I19),"",I19) -> Forecast
E42: OH Swtch & Cpctrs | G42: 281367.6651 | K42: =SUM(G42,I42) -> 281367.6651
E44: Concrete Poles | G44: 1719469.064 | K44: =SUM(G44,I44) -> 1719469.064
E46: Wood Poles | G46: 0 | K46: =SUM(G46,I46) -> 0
E48: OH Transformers | G48: 312630.739 | K48: =SUM(G48,I48) -> 312630.739
E50: OH Prim Cond & Dev | G50: 468946.1085 | K50: =SUM(G50,I50) -> 468946.1085
E52: OH Sec Cond & Dev | G52: 156315.3695 | K52: 156315.3695
E54: UG Prim XLPE TR | G54: 93789.2217 | K54: 93789.2217
E56: UG Sec - Dir Buried | G56: 93789.2217 | K56: 93789.2217
K58: 0
K60: 0
C62: Total System Access | G62: =SUM(G42,G44,G46,G48,G50,G52,G54,G56,G58,G60) -> 3126307.39 | I62: =SUM(I42,I44,I46,I48,I50,I52,I54,I56,I58,I60) -> 0 | K62: =SUM(K42,K44,K46,K48,K50,K52,K54,K56,K58,K60) -> 3126307.39
E64: =E40 -> Asset Type
C65: SYSTEM RENEWAL | G65: =G41 -> Audited Actual | I65: =I41 -> Forecast
K66: =SUM(G66,I66) -> 0
K68: =SUM(G68,I68) -> 0
K70: =SUM(G70,I70) -> 0
K72: =SUM(G72,I72) -> 0
K74: =SUM(G74,I74) -> 0
K76: =SUM(G76,I76) -> 0
K78: =SUM(G78,I78) -> 0
K80: =SUM(G80,I80) -> 0
K82: =SUM(G82,I82) -> 0
K84: 0
C86: Total System Renewal | G86: =SUM(G66,G68,G70,G72,G74,G76,G78,G80,G82,G84) -> 0 | I86: =SUM(I66,I68,I70,I72,I74,I76,I78,I80,I82,I84) -> 0 | K86: =SUM(K66,K68,K70,K72,K74,K76,K78,K80,K82,K84) -> 0
E88: =E64 -> Asset Type
C89: SYSTEM SERVICE | G89: =G65 -> Audited Actual | I89: =I65 -> Forecast
K90: =SUM(G90,I90) -> 0
K92: =SUM(G92,I92) -> 0
K94: =SUM(G94,I94) -> 0
K96: =SUM(G96,I96) -> 0
K98: =SUM(G98,I98) -> 0
K100: =SUM(G100,I100) -> 0
K102: =SUM(G102,I102) -> 0
K104: =SUM(G104,I104) -> 0
K106: =SUM(G106,I106) -> 0
K108: 0
C110: Total System Service | G110: =SUM(G90,G92,G94,G96,G98,G100,G102,G104,G106,G108) -> 0 | I110: =SUM(I90,I92,I94,I96,I98,I100,I102,I104,I106,I108) -> 0 | K110: =SUM(K90,K92,K94,K96,K98,K100,K102,K104,K106,K108) -> 0
E112: =E88 -> Asset Type
C113: GENERAL PLANT | G113: Audited Actual | I113: =I89 -> Forecast
K115: =SUM(G115,I115) -> 0
K117: =SUM(G117,I117) -> 0
K119: =SUM(G119,I119) -> 0
K121: =SUM(G121,I121) -> 0
K123: =SUM(G123,I123) -> 0
K125: =SUM(G125,I125) -> 0
K127: =SUM(G127,I127) -> 0
K129: =SUM(G129,I129) -> 0
K131: =SUM(G131,I131) -> 0
K133: 0
C135: Total General Plant | G135: =SUM(G115,G117,G119,G121,G123,G125,G127,G129,G131,G133) -> 0 | I135: =SUM(I115,I117,I119,I121,I123,I125,I127,I129,I131,I133) -> 0 | K135: =SUM(K115,K117,K119,K121,K123,K125,K127,K129,K131,K133) -> 0
E137: =E112 -> Asset Type
G138: Audited Actual | I138: =I113 -> Forecast
K140: =SUM(G140,I140) -> 0
K142: =SUM(G142,I142) -> 0
K144: =SUM(G144,I144) -> 0
K146: =SUM(G146,I146) -> 0
K148: =SUM(G148,I148) -> 0
K150: =SUM(G150,I150) -> 0
K152: =SUM(G152,I152) -> 0
K154: =SUM(G154,I154) -> 0
K156: =SUM(G156,I156) -> 0
K158: 0
C160: Total | G160: =SUM(G140,G142,G144,G146,G148,G150,G152,G154,G156,G158) -> 0 | I160: =SUM(I140,I142,I144,I146,I148,I150,I152,I154,I156,I158) -> 0 | K160: =SUM(K140,K142,K144,K146,K148,K150,K152,K154,K156,K158) -> 0
C162: Total Capital Costs Related to Incremental Capital Projects (ICP) | G162: =G160+G135+G110+G86+G62 -> 3126307.39 | I162: =SUM(I62,I86,I110,I135,I160) -> 0 | K162: =SUM(K62,K86,K110,K135,K160) -> 3126307.39
E164: =E137 -> Asset Type
C165: OTHER CAPITAL COST | G165: Audited Actual | I165: =I138 -> Forecast
C167: A | K167: =SUM(G167,I167) -> 0
C169: B | K169: =SUM(G169,I169) -> 0
C171: C | K171: =SUM(G171,I171) -> 0
C173: Total Other Capital Costs | G173: =SUM(G167,G169,G171) -> 0 | I173: =SUM(I167,I169,I171) -> 0 | K173: =SUM(K167,K169,K171) -> 0
C175: Total ICM Capital Costs | G175: =G162+G173 -> 3126307.39 | I175: =I162+I173 -> 0 | K175: =K162+K173 -> 3126307.39
B178: 2 | C178: Aggregated ICM Costs by Category
C180: Asset Account | D180: Capital | E180: Account
C182: 120227 | D182: OH Swtch & Cpctrs | E182: 1835 | G182: =SUMIF($E$42:$E$171,$D182,G$42:G$171) -> 281367.6651 | I182: =SUMIF($E$42:$E$171,$D182,I$42:I$171) -> 0 | K182: =SUM(G182:J182) -> 281367.6651
C184: 120223 | D184: Concrete Poles | E184: 1830 | G184: =SUMIF($E$42:$E$171,$D184,G$42:G$171) -> 1719469.064 | I184: =SUMIF($E$42:$E$171,$D184,I$42:I$171) -> 0 | K184: =SUM(G184:J184) -> 1719469.064
C186: 120221 | D186: Wood Poles | E186: 1830 | G186: =SUMIF($E$42:$E$171,$D186,G$42:G$171) -> 0 | I186: =SUMIF($E$42:$E$171,$D186,I$42:I$171) -> 0 | K186: =SUM(G186:J186) -> 0
C188: 120225 | D188: OH Transformers | E188: 1850 | G188: =SUMIF($E$42:$E$171,$D188,G$42:G$171) -> 312630.739 | I188: =SUMIF($E$42:$E$171,$D188,I$42:I$171) -> 0 | K188: =SUM(G188:J188) -> 312630.739
C190: 120224 | D190: OH Prim Cond & Dev | E190: 1835 | G190: =SUMIF($E$42:$E$171,$D190,G$42:G$171) -> 468946.1085 | I190: =SUMIF($E$42:$E$171,$D190,I$42:I$171) -> 0 | K190: =SUM(G190:J190) -> 468946.1085
C192: 120226 | D192: OH Sec Cond & Dev | E192: 1855 | G192: =SUMIF($E$42:$E$171,$D192,G$42:G$171) -> 156315.3695 | I192: =SUMIF($E$42:$E$171,$D192,I$42:I$171) -> 0 | K192: =SUM(G192:J192) -> 156315.3695
C194: 120243 | D194: UG Transformers | E194: 1850 | G194: =SUMIF($E$42:$E$171,$D194,G$42:G$171) -> 0 | I194: =SUMIF($E$42:$E$171,$D194,I$42:I$171) -> 0 | K194: =SUM(G194:J194) -> 0
C196: 120245 | D196: UG Conduit | E196: 1840 | G196: =SUMIF($E$42:$E$171,$D196,G$42:G$171) -> 0 | I196: =SUMIF($E$42:$E$171,$D196,I$42:I$171) -> 0 | K196: =SUM(G196:J196) -> 0
C198: 120241.XLPETR | D198: UG Prim XLPE TR | E198: 1845 | G198: =SUMIF($E$42:$E$171,$D198,G$42:G$171) -> 93789.2217 | I198: =SUMIF($E$42:$E$171,$D198,I$42:I$171) -> 0 | K198: =SUM(G198:J198) -> 93789.2217
C200: 120242.DB | D200: UG Sec - Dir Buried | E200: 1845 | G200: =SUMIF($E$42:$E$171,$D200,G$42:G$171) -> 93789.2217 | I200: =SUMIF($E$42:$E$171,$D200,I$42:I$171) -> 0 | K200: =SUM(G200:J200) -> 93789.2217
C202: 120242.IDSERV | D202: UG Sec In Duct/Svs | E202: 1845 | G202: =SUMIF($E$42:$E$171,$D202,G$42:G$171) -> 0 | I202: 0 | K202: 0
C204: 120248 | D204: Air Insulated Switchgear | E204: 1845 | G204: 0 | I204: 0 | K204: 0
C206: 120249 | D206: Solid Dielectric Switchgear | E206: 1845 | G206: 0 | I206: 0 | K206: 0
C208: 120244 | D208: UG Cable Injection | E208: 1845 | G208: 0
C210: 120063.MS | D210: MS Integrated P&C Systems | E210: 1820 | G210: 0
C212: 120021.MS | D212: MS Building Improvements | E212: 1820 | G212: 0
C214: 130104 | D214: Capital Contributions Paid | E214: 1609 | G214: 0
D219: Total Capital Costs | G219: =SUM(G182:G217) -> 3126307.39 | I219: =SUM(I182:I217) -> 0 | K219: =SUM(K182:K217) -> 3126307.39
G220: =IF(G219=G175," ","Error") ->  | I220: =IF(I219=I175,"","Error") ->  | K220: =IF(K219=K175,"","Error") -> 

Sheet 3. Cost_of_Service_Parameters
B17: Sheet 3: Parameters and Rates
G19: 2021 | I19: 2022 | K19: 2023 | M19: 2024 | O19: 2025 | Q19: 2026
B20: Cost of Capital
C21: Capital Structure
D22: Deemed Short-term Debt Capitalization | G22: 0.04 | I22: 0.04 | K22: 0.04 | M22: 0.04 | O22: 0.04 | Q22: 0.04
D23: Deemed Long-term Debt Capitalization | G23: =60%-G22 -> 0.56 | I23: =G23-(I22-G22) -> 0.56 | K23: =I23-(K22-I22) -> 0.56 | M23: =K23-(M22-K22) -> 0.56 | O23: =M23-(O22-M22) -> 0.56 | Q23: =O23-(Q22-O22) -> 0.56
D24: Deemed Equity Capitalization | G24: =100%-G23-G25-G22 -> 0.4 | I24: =100%-I23-I25-I22 -> 0.4 | K24: =100%-K23-K25-K22 -> 0.4 | M24: =100%-M23-M25-M22 -> 0.4 | O24: =100%-O23-O25-O22 -> 0.4 | Q24: =100%-Q23-Q25-Q22 -> 0.4
D25: Preferred Shares
C26: Total | G26: =SUM(G22:G25) -> 1 | I26: =SUM(I22:I25) -> 1 | K26: =SUM(K22:K25) -> 1 | M26: =SUM(M22:M25) -> 1 | O26: =SUM(O22:O25) -> 1 | Q26: =SUM(Q22:Q25) -> 1
C28: Cost of Capital Parameters
D29: Deemed Short-term Debt Rate | G29: 0.0176 | I29: 0.0176 | K29: 0.0176 | M29: 0.0176 | O29: 0.0176 | Q29: 0.0176
D30: Long-term Debt Rate (actual/embedded/deemed)1 | G30: 0.03882503715 | I30: 0.03882504 | K30: 0.03882504 | M30: 0.03882504 | O30: 0.03882504 | Q30: 0.03882504
D31: Target Return on Equity (ROE) | G31: 0.0878 | I31: 0.0878 | K31: 0.0878 | M31: 0.0878 | O31: 0.0878 | Q31: 0.0878
D32: Return on Preferred Shares
C33: WACC | G33: =SUMPRODUCT(G22:G25,G29:G32) -> 0.0575660208 | I33: =SUMPRODUCT(I22:I25,I29:I32) -> 0.0575660224 | K33: =SUMPRODUCT(K22:K25,K29:K32) -> 0.0575660224 | M33: =SUMPRODUCT(M22:M25,M29:M32) -> 0.0575660224 | O33: =SUMPRODUCT(O22:O25,O29:O32) -> 0.0575660224 | Q33: =SUMPRODUCT(Q22:Q25,Q29:Q32) -> 0.0575660224
B35: Working Capital Allowance
C36: Working Capital Allowance Rate | G36: 0.075 | I36: =G36 -> 0.075 | K36: =I36 -> 0.075 | M36: =K36 -> 0.075 | O36: =M36 -> 0.075 | Q36: =O36 -> 0.075
C37: (% of the sum of Cost of Power + controllable expenses)
B39: Taxes/PILs
C40: Aggregate Corporate Income Tax Rate | G40: 0.265 | I40: 0.265 | K40: 0.265 | M40: 0.265 | O40: 0.265 | Q40: 0.265
C41: Capital Tax (until July 1st, 2010) | G41: 0 | I41: 0 | K41: 0 | M41: 0 | O41: 0 | Q41: 0
B43: Depreciation Rates | E43: Account
B44: (expressed as expected useful life in years)
C45: OH Swtch & Cpctrs | E45: 1835 | G45: 38 | I45: =G45 -> 38 | K45: =I45 -> 38 | M45: =K45 -> 38 | O45: 35 | Q45: 35
C46: - rate (%) | G46: 0.02631578947 | I46: =IF(I45=0,0,1/I45) -> 0.02631578947 | K46: =IF(K45=0,0,1/K45) -> 0.02631578947 | M46: =IF(M45=0,0,1/M45) -> 0.02631578947 | O46: 0.02857142857 | Q46: 0.02857142857
C47: Concrete Poles | E47: 1830 | G47: 51 | I47: =G47 -> 51 | K47: =I47 -> 51 | M47: =K47 -> 51 | O47: 60 | Q47: 60
C48: - rate (%) | G48: 0.01960784314 | I48: =IF(I47=0,0,1/I47) -> 0.01960784314 | K48: =IF(K47=0,0,1/K47) -> 0.01960784314 | M48: =IF(M47=0,0,1/M47) -> 0.01960784314 | O48: 0.01666666667 | Q48: 0.01666666667
C49: Wood Poles | E49: 1830 | G49: 44 | I49: =G49 -> 44 | K49: =I49 -> 44 | M49: =K49 -> 44 | O49: 45 | Q49: 45
C50: - rate (%) | G50: 0.02272727273 | I50: =IF(I49=0,0,1/I49) -> 0.02272727273 | K50: =IF(K49=0,0,1/K49) -> 0.02272727273 | M50: =IF(M49=0,0,1/M49) -> 0.02272727273 | O50: 0.02222222222 | Q50: 0.02222222222
C51: OH Transformers | E51: 1850 | G51: 41 | I51: =G51 -> 41 | K51: =I51 -> 41 | M51: =K51 -> 41 | O51: 45 | Q51: 45
C52: - rate (%) | G52: 0.0243902439 | I52: =IF(I51=0,0,1/I51) -> 0.0243902439 | K52: =IF(K51=0,0,1/K51) -> 0.0243902439 | M52: =IF(M51=0,0,1/M51) -> 0.0243902439 | O52: 0.02222222222 | Q52: 0.02222222222
C53: OH Prim Cond & Dev | E53: 1835 | G53: 45 | I53: =G53 -> 45 | K53: =I53 -> 45 | M53: =K53 -> 45 | O53: 50 | Q53: 50
C54: - rate (%) | G54: 0.02222222222 | I54: =IF(I53=0,0,1/I53) -> 0.02222222222 | K54: =IF(K53=0,0,1/K53) -> 0.02222222222 | M54: =IF(M53=0,0,1/M53) -> 0.02222222222 | O54: 0.02 | Q54: 0.02
C55: OH Sec Cond & Dev | E55: 1855 | G55: 48 | I55: =G55 -> 48 | K55: =I55 -> 48 | M55: =K55 -> 48 | O55: 50 | Q55: 50
C56: - rate (%) | G56: 0.02083333333 | I56: =IF(I55=0,0,1/I55) -> 0.02083333333 | K56: =IF(K55=0,0,1/K55) -> 0.02083333333 | M56: =IF(M55=0,0,1/M55) -> 0.02083333333 | O56: 0.02 | Q56: 0.02
C57: UG Transformers | E57: 1850 | G57: 32 | I57: =G57 -> 32 | K57: =I57 -> 32 | M57: =K57 -> 32 | O57: 30 | Q57: 30
C58: - rate (%) | G58: 0.03125 | I58: =IF(I57=0,0,1/I57) -> 0.03125 | K58: =IF(K57=0,0,1/K57) -> 0.03125 | M58: =IF(M57=0,0,1/M57) -> 0.03125 | O58: 0.03333333333 | Q58: 0.03333333333
C59: UG Conduit | E59: 1840 | G59: 52 | I59: =G59 -> 52 | K59: =I59 -> 52 | M59: =K59 -> 52 | O59: 60 | Q59: 60
C60: - rate (%) | G60: 0.01923076923 | I60: =IF(I59=0,0,1/I59) -> 0.01923076923 | K60: =IF(K59=0,0,1/K59) -> 0.01923076923 | M60: =IF(M59=0,0,1/M59) -> 0.01923076923 | O60: 0.01666666667 | Q60: 0.01666666667
C61: UG Prim XLPE TR | E61: 1845 | G61: 38 | I61: =G61 -> 38 | K61: =I61 -> 38 | M61: =K61 -> 38 | O61: 45 | Q61: 45
C62: - rate (%) | G62: 0.02631578947 | I62: =IF(I61=0,0,1/I61) -> 0.02631578947 | K62: =IF(K61=0,0,1/K61) -> 0.02631578947 | M62: =IF(M61=0,0,1/M61) -> 0.02631578947 | O62: 0.02222222222 | Q62: 0.02222222222
C63: UG Sec - Dir Buried | E63: 1845 | G63: 31 | I63: =G63 -> 31 | K63: =I63 -> 31 | M63: =K63 -> 31 | O63: 30 | Q63: 30
C64: - rate (%) | G64: 0.03225806452 | I64: =IF(I63=0,0,1/I63) -> 0.03225806452 | K64: =IF(K63=0,0,1/K63) -> 0.03225806452 | M64: =IF(M63=0,0,1/M63) -> 0.03225806452 | O64: 0.03333333333 | Q64: 0.03333333333
C65: UG Sec In Duct/Svs | E65: 1845 | G65: 37 | I65: =G65 -> 37 | K65: =I65 -> 37 | M65: =K65 -> 37 | O65: 40 | Q65: 40
C66: - rate (%) | G66: 0.02702702703 | I66: =IF(I65=0,0,1/I65) -> 0.02702702703 | K66: =IF(K65=0,0,1/K65) -> 0.02702702703 | M66: =IF(M65=0,0,1/M65) -> 0.02702702703 | O66: 0.025 | Q66: 0.025
C67: Air Insulated Switchgear | E67: 1845 | G67: 39 | I67: 39 | K67: 39 | M67: 39 | O67: 35 | Q67: 35
C68: - rate (%) | G68: 0.02564102564 | I68: 0.02564102564 | K68: 0.02564102564 | M68: 0.02564102564 | O68: 0.02857142857 | Q68: 0.02857142857
C69: Solid Dielectric Switchgear | E69: 1845 | G69: 42 | I69: =G69 -> 42 | K69: =I69 -> 42 | M69: =K69 -> 42 | O69: 45 | Q69: 45
C70: - rate (%) | G70: 0.02380952381 | I70: =IF(I69=0,0,1/I69) -> 0.02380952381 | K70: =IF(K69=0,0,1/K69) -> 0.02380952381 | M70: =IF(M69=0,0,1/M69) -> 0.02380952381 | O70: 0.02222222222 | Q70: 0.02222222222
C71: UG Cable Injection | E71: 1845 | G71: 24 | I71: =G71 -> 24 | K71: =I71 -> 24 | M71: =K71 -> 24 | O71: 20 | Q71: 20
C72: - rate (%) | G72: 0.04166666667 | I72: 0.04166666667 | K72: 0.04166666667 | M72: 0.04166666667 | O72: 0.05 | Q72: 0.05
C73: MS Integrated P&C Systems | E73: 1820 | G73: 36 | I73: =G73 -> 36 | K73: =I73 -> 36 | M73: =K73 -> 36 | O73: 15 | Q73: 15
C74: - rate (%) | G74: 0.02777777778 | I74: 0.02777777778 | K74: 0.02777777778 | M74: 0.02777777778 | O74: 0.06666666667 | Q74: 0.06666666667
C75: MS Building Improvements | E75: 1820 | G75: 21 | I75: =G75 -> 21 | K75: =I75 -> 21 | M75: =K75 -> 21 | O75: 25 | Q75: 25
C76: - rate (%) | G76: 0.04761904762 | I76: 0.04761904762 | K76: 0.04761904762 | M76: 0.04761904762 | O76: 0.04 | Q76: 0.04
C77: Capital Contributions Paid | E77: 1609 | G77: 40 | I77: =G77 -> 40 | K77: =I77 -> 40 | M77: =K77 -> 40 | O77: 40 | Q77: 40
C78: - rate (%) | G78: 0.025 | I78: 0.025 | K78: 0.025 | M78: 0.025 | O78: 0.025 | Q78: 0.025
B82: CCA Rates
C83: OH Swtch & Cpctrs - CCA Class | G83: 47 | I83: 47 | K83: 47 | M83: 47 | O83: 47 | Q83: 47
C84: OH Swtch & Cpctrs - CCA Rate | G84: 0.08 | I84: 0.08 | K84: 0.08 | M84: 0.08 | O84: 0.08 | Q84: 0.08
C86: Concrete Poles - CCA Class | G86: 47 | I86: 47 | K86: 47 | M86: 47 | O86: 47 | Q86: 47
C87: Concrete Poles - CCA Rate | G87: 0.08 | I87: 0.08 | K87: 0.08 | M87: 0.08 | O87: 0.08 | Q87: 0.08
C89: Wood Poles - CCA Class | G89: 47 | I89: 47 | K89: 47 | M89: 47 | O89: 47 | Q89: 47
C90: Wood Poles - CCA Rate | G90: 0.08 | I90: 0.08 | K90: 0.08 | M90: 0.08 | O90: 0.08 | Q90: 0.08
C92: OH Transformers - CCA Class | G92: 47 | I92: 47 | K92: 47 | M92: 47 | O92: 47 | Q92: 47
C93: OH Transformers - CCA Rate | G93: 0.08 | I93: 0.08 | K93: 0.08 | M93: 0.08 | O93: 0.08 | Q93: 0.08
C95: OH Prim Cond & Dev - CCA Class | G95: 47 | I95: 47 | K95: 47 | M95: 47 | O95: 47 | Q95: 47
C96: OH Prim Cond & Dev - CCA Rate | G96: 0.08 | I96: 0.08 | K96: 0.08 | M96: 0.08 | O96: 0.08 | Q96: 0.08
C98: OH Sec Cond & Dev - CCA Class | G98: 47 | I98: 47 | K98: 47 | M98: 47 | O98: 47 | Q98: 47
C99: OH Sec Cond & Dev - CCA Rate | G99: 0.08 | I99: 0.08 | K99: 0.08 | M99: 0.08 | O99: 0.08 | Q99: 0.08
C101: UG Transformers - CCA Class | G101: 47 | I101: 47 | K101: 47 | M101: 47 | O101: 47 | Q101: 47
C102: UG Transformers - CCA Rate | G102: 0.08 | I102: 0.08 | K102: 0.08 | M102: 0.08 | O102: 0.08 | Q102: 0.08
C104: OH Services - CCA Class | G104: 47 | I104: 47 | K104: 47 | M104: 47 | O104: 47 | Q104: 47
C105: OH Services - CCA Rate | G105: 0.08 | I105: 0.08 | K105: 0.08 | M105: 0.08 | O105: 0.08 | Q105: 0.08
C107: UG Conduit - CCA Class | G107: 47 | I107: 47 | K107: 47 | M107: 47 | O107: 47 | Q107: 47
C108: UG Conduit - CCA Rate | G108: 0.08 | I108: 0.08 | K108: 0.08 | M108: 0.08 | O108: 0.08 | Q108: 0.08
C110: UG Prim XLPE TR - CCA Class | G110: 47 | I110: 47 | K110: 47 | M110: 47 | O110: 47 | Q110: 47
C111: UG Prim XLPE TR - CCA Rate | G111: 0.08 | I111: 0.08 | K111: 0.08 | M111: 0.08 | O111: 0.08 | Q111: 0.08
C113: UG Sec - Dir Buried - CCA Class | G113: 47 | I113: 47 | K113: 47 | M113: 47 | O113: 47 | Q113: 47
C114: UG Sec - Dir Buried - CCA Rate | G114: 0.08 | I114: 0.08 | K114: 0.08 | M114: 0.08 | O114: 0.08 | Q114: 0.08
C116: UG Sec In Duct/Svs - CCA Class | G116: 47 | I116: 47 | K116: 47 | M116: 47 | O116: 47 | Q116: 47
C117: UG Sec In Duct/Svs - CCA Rate | G117: 0.08 | I117: 0.08 | K117: 0.08 | M117: 0.08 | O117: 0.08 | Q117: 0.08
C119: Air Insulated Switchgear - CCA Class | G119: 47 | I119: 47 | K119: 47 | M119: 47 | O119: 47 | Q119: 47
C120: Air Insulated Switchgear - CCA Rate | G120: 0.08 | I120: 0.08 | K120: 0.08 | M120: 0.08 | O120: 0.08 | Q120: 0.08
C122: Solid Dielectric Switchgear - CCA Class | G122: 47 | I122: 47 | K122: 47 | M122: 47 | O122: 47 | Q122: 47
C123: Solid Dielectric Switchgear - CCA Rate | G123: 0.08 | I123: 0.08 | K123: 0.08 | M123: 0.08 | O123: 0.08 | Q123: 0.08
C125: UG Cable Injection - CCA Class | G125: 47 | I125: 47 | K125: 47 | M125: 47 | O125: 47 | Q125: 47
C126: UG Cable Injection - CCA Rate | G126: 0.08 | I126: 0.08 | K126: 0.08 | M126: 0.08 | O126: 0.08 | Q126: 0.08
C128: MS Integrated P&C Systems - CCA Class | G128: 47 | I128: 47 | K128: 47 | M128: 47 | O128: 47 | Q128: 47
C129: MS Integrated P&C Systems - CCA Rate | G129: 0.08 | I129: 0.08 | K129: 0.08 | M129: 0.08 | O129: 0.08 | Q129: 0.08
C131: MS Building Improvements - CCA Class | G131: 1 | I131: 1 | K131: 1 | M131: 1 | O131: 1 | Q131: 1
C132: MS Building Improvements - CCA Rate | G132: 0.04 | I132: 0.04 | K132: 0.04 | M132: 0.04 | O132: 0.04 | Q132: 0.04
C134: Capital Contributions Paid - CCA Class | G134: 47 | I134: 47 | K134: 47 | M134: 47 | O134: 47 | Q134: 47
C135: Capital Contributions Paid - CCA Rate | G135: 0.08 | I135: 0.08 | K135: 0.08 | M135: 0.08 | O135: 0.08 | Q135: 0.08
B138: Assumptions
B139: 1 | C139: Fiscal calendar year (January 1 to December 31) used.
B140: 3 | C140: Amortization is done on a striaght line basis and no "half-year" rule applied.

Sheet 4. ICM_Assets_and_Rate_Base
B17: Sheet 4: ICM Assets - Net Book Value
I18: ='3. Cost_of_Service_Parameters'!G19 -> 2021 | K18: 2022 | M18: 2023 | O18: 2024 | Q18: 2025 | S18: 2026
B19: Net Fixed Assets - OH Swtch & Cpctrs
C21: Gross Book Value
D22: Opening Balance | K22: =I25 -> 281367.6651 | M22: =K25 -> 281367.6651 | O22: =M25 -> 281367.6651 | Q22: =O25 -> 281367.6651 | S22: =Q25 -> 281367.6651
D23: Capital Additions during year (from ICM Costs) | I23: ='2. ICM_Costs'!G182 -> 281367.6651 | K23: ='2. ICM_Costs'!I182 -> 0
D24: Retirements/Removals (if applicable)
D25: Closing Balance | I25: =I22+I23-I24 -> 281367.6651 | K25: =K22+K23-K24 -> 281367.6651 | M25: =M22+M23-M24 -> 281367.6651 | O25: =O22+O23-O24 -> 281367.6651 | Q25: =Q22+Q23-Q24 -> 281367.6651 | S25: =S22+S23-S24 -> 281367.6651
C27: Accumulated Depreciation
D28: Opening Balance | K28: =I31 -> -7404.412239 | M28: =K31 -> -14808.82448 | O28: =M31 -> -22213.23672 | Q28: =O31 -> -29617.64896 | S28: =Q31 -> -37656.7251
D29: Amortization expense during year | I29: =IF(ISERROR(-(I23/('3. Cost_of_Service_Parameters'!G45)+MIN((I22/'3. Cost_of_Service_Parameters'!G45),(I22+I28)))), 0, -(I23/('3. Cost_of_Service_Parameters'!G45)+MIN((I22/'3. Cost_of_Service_Parameters'!G45),(I22+I28)))) -> -7404.412239 | K29: =IF(ISERROR(-(K23/('3. Cost_of_Service_Parameters'!I45)+MIN((K22/'3. Cost_of_Service_Parameters'!I45),(K22+K28)))), 0, -(K23/('3. Cost_of_Service_Parameters'!I45)+MIN((K22/'3. Cost_of_Service_Parameters'!I45),(K22+K28)))) -> -7404.412239 | M29: =IF(ISERROR(-(M23/('3. Cost_of_Service_Parameters'!K45)+MIN((M22/'3. Cost_of_Service_Parameters'!K45),(M22+M28)))), 0, -(M23/('3. Cost_of_Service_Parameters'!K45)+MIN((M22/'3. Cost_of_Service_Parameters'!K45),(M22+M28)))) -> -7404.412239 | O29: =IF(ISERROR(-(O23/('3. Cost_of_Service_Parameters'!M45)+MIN((O22/'3. Cost_of_Service_Parameters'!M45),(O22+O28)))), 0, -(O23/('3. Cost_of_Service_Parameters'!M45)+MIN((O22/'3. Cost_of_Service_Parameters'!M45),(O22+O28)))) -> -7404.412239 | Q29: =IF(ISERROR(-(Q23/('3. Cost_of_Service_Parameters'!O45)+MIN((Q22/'3. Cost_of_Service_Parameters'!O45),(Q22+Q28)))), 0, -(Q23/('3. Cost_of_Service_Parameters'!O45)+MIN((Q22/'3. Cost_of_Service_Parameters'!O45),(Q22+Q28)))) -> -8039.076146 | S29: =IF(ISERROR(-(S23/('3. Cost_of_Service_Parameters'!Q45)+MIN((S22/'3. Cost_of_Service_Parameters'!Q45),(S22+S28)))), 0, -(S23/('3. Cost_of_Service_Parameters'!Q45)+MIN((S22/'3. Cost_of_Service_Parameters'!Q45),(S22+S28)))) -> -8039.076146
D30: Retirements/Removals (if applicable)
D31: Closing Balance | I31: =I28+I29-I30 -> -7404.412239 | K31: =K28+K29-K30 -> -14808.82448 | M31: =M28+M29-M30 -> -22213.23672 | O31: =O28+O29-O30 -> -29617.64896 | Q31: =Q28+Q29-Q30 -> -37656.7251 | S31: =S28+S29-S30 -> -45695.80125
C33: Net Book Value
D34: Opening Balance | I34: =I22+I28 -> 0 | K34: =I35 -> 273963.2529 | M34: =K35 -> 266558.8406 | O34: =M35 -> 259154.4284 | Q34: =O35 -> 251750.0161 | S34: =Q35 -> 243710.94
D35: Closing Balance | I35: =I25+I31 -> 273963.2529 | K35: =K25+K31 -> 266558.8406 | M35: =M25+M31 -> 259154.4284 | O35: =O25+O31 -> 251750.0161 | Q35: =Q25+Q31 -> 243710.94 | S35: =S25+S31 -> 235671.8639
D36: Incremental CAPEX | I36: =I35 -> 273963.2529 | K36: =AVERAGE(K34:K35) -> 270261.0467 | M36: =AVERAGE(M34:M35) -> 262856.6345 | O36: =AVERAGE(O34:O35) -> 255452.2223 | Q36: =AVERAGE(Q34:Q35) -> 247730.4781 | S36: =AVERAGE(S34:S35) -> 239691.4019
B38: Net Fixed Assets - Concrete Poles
C40: Gross Book Value
D41: Opening Balance | K41: =I44 -> 1719469.064 | M41: =K44 -> 1719469.064 | O41: =M44 -> 1719469.064 | Q41: =O44 -> 1719469.064 | S41: =Q44 -> 1719469.064
D42: Capital Additions during year (from ICM Costs) | I42: ='2. ICM_Costs'!G184 -> 1719469.064 | K42: ='2. ICM_Costs'!I184 -> 0
D43: Retirements/Removals (if applicable)
D44: Closing Balance | I44: =I41+I42-I43 -> 1719469.064 | K44: =K41+K42-K43 -> 1719469.064 | M44: =M41+M42-M43 -> 1719469.064 | O44: =O41+O42-O43 -> 1719469.064 | Q44: =Q41+Q42-Q43 -> 1719469.064 | S44: =S41+S42-S43 -> 1719469.064
C46: Accumulated Depreciation
D47: Opening Balance | K47: =I50 -> -33715.0797 | M47: =K50 -> -67430.15939 | O47: =M50 -> -101145.2391 | Q47: =O50 -> -134860.3188 | S47: =Q50 -> -163518.1365
D48: Amortization expense during year | I48: =IF(ISERROR(-(I42/('3. Cost_of_Service_Parameters'!G47)+MIN((I41/'3. Cost_of_Service_Parameters'!G47),(I41+I47)))), 0, -(I42/('3. Cost_of_Service_Parameters'!G47)+MIN((I41/'3. Cost_of_Service_Parameters'!G47),(I41+I47)))) -> -33715.0797 | K48: =IF(ISERROR(-(K42/('3. Cost_of_Service_Parameters'!I47*2)+MIN((K41/'3. Cost_of_Service_Parameters'!I47),(K41+K47)))), 0, -(K42/('3. Cost_of_Service_Parameters'!I47*2)+MIN((K41/'3. Cost_of_Service_Parameters'!I47),(K41+K47)))) -> -33715.0797 | M48: =IF(ISERROR(-(M42/('3. Cost_of_Service_Parameters'!K47*2)+MIN((M41/'3. Cost_of_Service_Parameters'!K47),(M41+M47)))), 0, -(M42/('3. Cost_of_Service_Parameters'!K47*2)+MIN((M41/'3. Cost_of_Service_Parameters'!K47),(M41+M47)))) -> -33715.0797 | O48: =IF(ISERROR(-(O42/('3. Cost_of_Service_Parameters'!M47*2)+MIN((O41/'3. Cost_of_Service_Parameters'!M47),(O41+O47)))), 0, -(O42/('3. Cost_of_Service_Parameters'!M47*2)+MIN((O41/'3. Cost_of_Service_Parameters'!M47),(O41+O47)))) -> -33715.0797 | Q48: =IF(ISERROR(-(Q42/('3. Cost_of_Service_Parameters'!O47*2)+MIN((Q41/'3. Cost_of_Service_Parameters'!O47),(Q41+Q47)))), 0, -(Q42/('3. Cost_of_Service_Parameters'!O47*2)+MIN((Q41/'3. Cost_of_Service_Parameters'!O47),(Q41+Q47)))) -> -28657.81774 | S48: =IF(ISERROR(-(S42/('3. Cost_of_Service_Parameters'!Q47*2)+MIN((S41/'3. Cost_of_Service_Parameters'!Q47),(S41+S47)))), 0, -(S42/('3. Cost_of_Service_Parameters'!Q47*2)+MIN((S41/'3. Cost_of_Service_Parameters'!Q47),(S41+S47)))) -> -28657.81774
D49: Retirements/Removals (if applicable)
D50: Closing Balance | I50: =I47+I48-I49 -> -33715.0797 | K50: =K47+K48-K49 -> -67430.15939 | M50: =M47+M48-M49 -> -101145.2391 | O50: =O47+O48-O49 -> -134860.3188 | Q50: =Q47+Q48-Q49 -> -163518.1365 | S50: =S47+S48-S49 -> -192175.9543
C52: Net Book Value
D53: Opening Balance | I53: =I41+I47 -> 0 | K53: =I54 -> 1685753.985 | M53: =K54 -> 1652038.905 | O53: =M54 -> 1618323.825 | Q53: =O54 -> 1584608.746 | S53: =Q54 -> 1555950.928
D54: Closing Balance | I54: =I44+I50 -> 1685753.985 | K54: =K44+K50 -> 1652038.905 | M54: =M44+M50 -> 1618323.825 | O54: =O44+O50 -> 1584608.746 | Q54: =Q44+Q50 -> 1555950.928 | S54: =S44+S50 -> 1527293.11
D55: Incremental CAPEX | I55: =I54 -> 1685753.985 | K55: =AVERAGE(K53:K54) -> 1668896.445 | M55: =AVERAGE(M53:M54) -> 1635181.365 | O55: =AVERAGE(O53:O54) -> 1601466.286 | Q55: =AVERAGE(Q53:Q54) -> 1570279.837 | S55: =AVERAGE(S53:S54) -> 1541622.019
B57: Net Fixed Assets - Wood Poles
C59: Gross Book Value
D60: Opening Balance | K60: =I63 -> 0 | M60: =K63 -> 0 | O60: =M63 -> 0 | Q60: =O63 -> 0 | S60: =Q63 -> 0
D61: Capital Additions during year (from ICM Costs) | I61: ='2. ICM_Costs'!G186 -> 0
D62: Retirements/Removals (if applicable)
D63: Closing Balance | I63: =I60+I61-I62 -> 0 | K63: =K60+K61-K62 -> 0 | M63: =M60+M61-M62 -> 0 | O63: =O60+O61-O62 -> 0 | Q63: =Q60+Q61-Q62 -> 0 | S63: =S60+S61-S62 -> 0
C65: Accumulated Depreciation
D66: Opening Balance | K66: =I69 -> 0 | M66: =K69 -> 0 | O66: =M69 -> 0 | Q66: =O69 -> 0 | S66: =Q69 -> 0
D67: Amortization expense during year | I67: =IF(ISERROR(-(I61/('3. Cost_of_Service_Parameters'!G49)+MIN((I60/'3. Cost_of_Service_Parameters'!G49),(I60+I66)))), 0, -(I61/('3. Cost_of_Service_Parameters'!G49)+MIN((I60/'3. Cost_of_Service_Parameters'!G49),(I60+I66)))) -> 0 | K67: =IF(ISERROR(-(K61/('3. Cost_of_Service_Parameters'!I49*2)+MIN((K60/'3. Cost_of_Service_Parameters'!I49),(K60+K66)))), 0, -(K61/('3. Cost_of_Service_Parameters'!I49*2)+MIN((K60/'3. Cost_of_Service_Parameters'!I49),(K60+K66)))) -> 0 | M67: =IF(ISERROR(-(M61/('3. Cost_of_Service_Parameters'!K49*2)+MIN((M60/'3. Cost_of_Service_Parameters'!K49),(M60+M66)))), 0, -(M61/('3. Cost_of_Service_Parameters'!K49*2)+MIN((M60/'3. Cost_of_Service_Parameters'!K49),(M60+M66)))) -> 0 | O67: =IF(ISERROR(-(O61/('3. Cost_of_Service_Parameters'!M49*2)+MIN((O60/'3. Cost_of_Service_Parameters'!M49),(O60+O66)))), 0, -(O61/('3. Cost_of_Service_Parameters'!M49*2)+MIN((O60/'3. Cost_of_Service_Parameters'!M49),(O60+O66)))) -> 0 | Q67: =IF(ISERROR(-(Q61/('3. Cost_of_Service_Parameters'!O49*2)+MIN((Q60/'3. Cost_of_Service_Parameters'!O49),(Q60+Q66)))), 0, -(Q61/('3. Cost_of_Service_Parameters'!O49*2)+MIN((Q60/'3. Cost_of_Service_Parameters'!O49),(Q60+Q66)))) -> 0 | S67: =IF(ISERROR(-(S61/('3. Cost_of_Service_Parameters'!Q49*2)+MIN((S60/'3. Cost_of_Service_Parameters'!Q49),(S60+S66)))), 0, -(S61/('3. Cost_of_Service_Parameters'!Q49*2)+MIN((S60/'3. Cost_of_Service_Parameters'!Q49),(S60+S66)))) -> 0
D68: Retirements/Removals (if applicable)
D69: Closing Balance | I69: =I66+I67-I68 -> 0 | K69: =K66+K67-K68 -> 0 | M69: =M66+M67-M68 -> 0 | O69: =O66+O67-O68 -> 0 | Q69: =Q66+Q67-Q68 -> 0 | S69: =S66+S67-S68 -> 0
C71: Net Book Value
D72: Opening Balance | I72: =I60+I66 -> 0 | K72: =I73 -> 0 | M72: =K73 -> 0 | O72: =M73 -> 0 | Q72: =O73 -> 0 | S72: =Q73 -> 0
D73: Closing Balance | I73: =I63+I69 -> 0 | K73: =K63+K69 -> 0 | M73: =M63+M69 -> 0 | O73: =O63+O69 -> 0 | Q73: =Q63+Q69 -> 0 | S73: =S63+S69 -> 0
D74: Incremental CAPEX | I74: =I73 -> 0 | K74: =AVERAGE(K72:K73) -> 0 | M74: =AVERAGE(M72:M73) -> 0 | O74: =AVERAGE(O72:O73) -> 0 | Q74: =AVERAGE(Q72:Q73) -> 0 | S74: =AVERAGE(S72:S73) -> 0
B76: Net Fixed Assets - OH Transformers
C78: Gross Book Value
D79: Opening Balance | K79: =I82 -> 312630.739 | M79: =K82 -> 312630.739 | O79: =M82 -> 312630.739 | Q79: =O82 -> 312630.739 | S79: =Q82 -> 312630.739
D80: Capital Additions during year (from ICM Costs) | I80: ='2. ICM_Costs'!G188 -> 312630.739
D81: Retirements/Removals (if applicable)
D82: Closing Balance | I82: =I79+I80-I81 -> 312630.739 | K82: =K79+K80-K81 -> 312630.739 | M82: =M79+M80-M81 -> 312630.739 | O82: =O79+O80-O81 -> 312630.739 | Q82: =Q79+Q80-Q81 -> 312630.739 | S82: =S79+S80-S81 -> 312630.739
C84: Accumulated Depreciation
D85: Opening Balance | K85: =I88 -> -7625.139976 | M85: =K88 -> -15250.27995 | O85: =M88 -> -22875.41993 | Q85: =O88 -> -30500.5599 | S85: =Q88 -> -37447.90966
D86: Amortization expense during year | I86: =IF(ISERROR(-(I80/('3. Cost_of_Service_Parameters'!G51)+MIN((I79/'3. Cost_of_Service_Parameters'!G51),(I79+I85)))), 0, -(I80/('3. Cost_of_Service_Parameters'!G51)+MIN((I79/'3. Cost_of_Service_Parameters'!G51),(I79+I85)))) -> -7625.139976 | K86: =IF(ISERROR(-(K80/('3. Cost_of_Service_Parameters'!I51*2)+MIN((K79/'3. Cost_of_Service_Parameters'!I51),(K79+K85)))), 0, -(K80/('3. Cost_of_Service_Parameters'!I51*2)+MIN((K79/'3. Cost_of_Service_Parameters'!I51),(K79+K85)))) -> -7625.139976 | M86: =IF(ISERROR(-(M80/('3. Cost_of_Service_Parameters'!K51*2)+MIN((M79/'3. Cost_of_Service_Parameters'!K51),(M79+M85)))), 0, -(M80/('3. Cost_of_Service_Parameters'!K51*2)+MIN((M79/'3. Cost_of_Service_Parameters'!K51),(M79+M85)))) -> -7625.139976 | O86: =IF(ISERROR(-(O80/('3. Cost_of_Service_Parameters'!M51*2)+MIN((O79/'3. Cost_of_Service_Parameters'!M51),(O79+O85)))), 0, -(O80/('3. Cost_of_Service_Parameters'!M51*2)+MIN((O79/'3. Cost_of_Service_Parameters'!M51),(O79+O85)))) -> -7625.139976 | Q86: =IF(ISERROR(-(Q80/('3. Cost_of_Service_Parameters'!O51*2)+MIN((Q79/'3. Cost_of_Service_Parameters'!O51),(Q79+Q85)))), 0, -(Q80/('3. Cost_of_Service_Parameters'!O51*2)+MIN((Q79/'3. Cost_of_Service_Parameters'!O51),(Q79+Q85)))) -> -6947.349756 | S86: =IF(ISERROR(-(S80/('3. Cost_of_Service_Parameters'!Q51*2)+MIN((S79/'3. Cost_of_Service_Parameters'!Q51),(S79+S85)))), 0, -(S80/('3. Cost_of_Service_Parameters'!Q51*2)+MIN((S79/'3. Cost_of_Service_Parameters'!Q51),(S79+S85)))) -> -6947.349756
D87: Retirements/Removals (if applicable)
D88: Closing Balance | I88: =I85+I86-I87 -> -7625.139976 | K88: =K85+K86-K87 -> -15250.27995 | M88: =M85+M86-M87 -> -22875.41993 | O88: =O85+O86-O87 -> -30500.5599 | Q88: =Q85+Q86-Q87 -> -37447.90966 | S88: =S85+S86-S87 -> -44395.25941
C90: Net Book Value
D91: Opening Balance | I91: =I79+I85 -> 0 | K91: =I92 -> 305005.599 | M91: =K92 -> 297380.459 | O91: =M92 -> 289755.3191 | Q91: =O92 -> 282130.1791 | S91: =Q92 -> 275182.8293
D92: Closing Balance | I92: =I82+I88 -> 305005.599 | K92: =K82+K88 -> 297380.459 | M92: =M82+M88 -> 289755.3191 | O92: =O82+O88 -> 282130.1791 | Q92: =Q82+Q88 -> 275182.8293 | S92: =S82+S88 -> 268235.4796
D93: Incremental CAPEX | I93: =I92 -> 305005.599 | K93: =AVERAGE(K91:K92) -> 301193.029 | M93: =AVERAGE(M91:M92) -> 293567.8891 | O93: =AVERAGE(O91:O92) -> 285942.7491 | Q93: =AVERAGE(Q91:Q92) -> 278656.5042 | S93: =AVERAGE(S91:S92) -> 271709.1545
B95: Net Fixed Assets - OH Prim Cond & Dev
C97: Gross Book Value
D98: Opening Balance | K98: =I101 -> 468946.1085 | M98: =K101 -> 468946.1085 | O98: =M101 -> 468946.1085 | Q98: =O101 -> 468946.1085 | S98: =Q101 -> 468946.1085
D99: Capital Additions during year (from ICM Costs) | I99: ='2. ICM_Costs'!G190 -> 468946.1085 | K99: ='2. ICM_Costs'!I190 -> 0
D100: Retirements/Removals (if applicable)
D101: Closing Balance | I101: =I98+I99-I100 -> 468946.1085 | K101: =K98+K99-K100 -> 468946.1085 | M101: =M98+M99-M100 -> 468946.1085 | O101: =O98+O99-O100 -> 468946.1085 | Q101: =Q98+Q99-Q100 -> 468946.1085 | S101: =S98+S99-S100 -> 468946.1085
C103: Accumulated Depreciation
D104: Opening Balance | K104: =I107 -> -10421.02463 | M104: =K107 -> -20842.04927 | O104: =M107 -> -31263.0739 | Q104: =O107 -> -41684.09853 | S104: =Q107 -> -51063.0207
D105: Amortization expense during year | I105: =IF(ISERROR(-(I99/('3. Cost_of_Service_Parameters'!G53)+MIN((I98/'3. Cost_of_Service_Parameters'!G53),(I98+I104)))), 0, -(I99/('3. Cost_of_Service_Parameters'!G53)+MIN((I98/'3. Cost_of_Service_Parameters'!G53),(I98+I104)))) -> -10421.02463 | K105: =IF(ISERROR(-(K99/('3. Cost_of_Service_Parameters'!I53*2)+MIN((K98/'3. Cost_of_Service_Parameters'!I53),(K98+K104)))), 0, -(K99/('3. Cost_of_Service_Parameters'!I53*2)+MIN((K98/'3. Cost_of_Service_Parameters'!I53),(K98+K104)))) -> -10421.02463 | M105: =IF(ISERROR(-(M99/('3. Cost_of_Service_Parameters'!K53*2)+MIN((M98/'3. Cost_of_Service_Parameters'!K53),(M98+M104)))), 0, -(M99/('3. Cost_of_Service_Parameters'!K53*2)+MIN((M98/'3. Cost_of_Service_Parameters'!K53),(M98+M104)))) -> -10421.02463 | O105: =IF(ISERROR(-(O99/('3. Cost_of_Service_Parameters'!M53*2)+MIN((O98/'3. Cost_of_Service_Parameters'!M53),(O98+O104)))), 0, -(O99/('3. Cost_of_Service_Parameters'!M53*2)+MIN((O98/'3. Cost_of_Service_Parameters'!M53),(O98+O104)))) -> -10421.02463 | Q105: =IF(ISERROR(-(Q99/('3. Cost_of_Service_Parameters'!O53*2)+MIN((Q98/'3. Cost_of_Service_Parameters'!O53),(Q98+Q104)))), 0, -(Q99/('3. Cost_of_Service_Parameters'!O53*2)+MIN((Q98/'3. Cost_of_Service_Parameters'!O53),(Q98+Q104)))) -> -9378.92217 | S105: =IF(ISERROR(-(S99/('3. Cost_of_Service_Parameters'!Q53*2)+MIN((S98/'3. Cost_of_Service_Parameters'!Q53),(S98+S104)))), 0, -(S99/('3. Cost_of_Service_Parameters'!Q53*2)+MIN((S98/'3. Cost_of_Service_Parameters'!Q53),(S98+S104)))) -> -9378.92217
D106: Retirements/Removals (if applicable)
D107: Closing Balance | I107: =I104+I105-I106 -> -10421.02463 | K107: =K104+K105-K106 -> -20842.04927 | M107: =M104+M105-M106 -> -31263.0739 | O107: =O104+O105-O106 -> -41684.09853 | Q107: =Q104+Q105-Q106 -> -51063.0207 | S107: =S104+S105-S106 -> -60441.94287
C109: Net Book Value
D110: Opening Balance | I110: =I98+I104 -> 0 | K110: =I111 -> 458525.0839 | M110: =K111 -> 448104.0592 | O110: =M111 -> 437683.0346 | Q110: =O111 -> 427262.01 | S110: =Q111 -> 417883.0878
D111: Closing Balance | I111: =I101+I107 -> 458525.0839 | K111: =K101+K107 -> 448104.0592 | M111: =M101+M107 -> 437683.0346 | O111: =O101+O107 -> 427262.01 | Q111: =Q101+Q107 -> 417883.0878 | S111: =S101+S107 -> 408504.1656
D112: Incremental CAPEX | I112: =I111 -> 458525.0839 | K112: =AVERAGE(K110:K111) -> 453314.5715 | M112: =AVERAGE(M110:M111) -> 442893.5469 | O112: =AVERAGE(O110:O111) -> 432472.5223 | Q112: =AVERAGE(Q110:Q111) -> 422572.5489 | S112: =AVERAGE(S110:S111) -> 413193.6267
B114: Net Fixed Assets - OH Sec Cond & Dev
C116: Gross Book Value
D117: Opening Balance | K117: =I120 -> 156315.3695 | M117: =K120 -> 156315.3695 | O117: =M120 -> 156315.3695 | Q117: =O120 -> 156315.3695 | S117: =Q120 -> 156315.3695
D118: Capital Additions during year (from ICM Costs) | I118: ='2. ICM_Costs'!G192 -> 156315.3695 | K118: ='2. ICM_Costs'!I192 -> 0
D119: Retirements/Removals (if applicable)
D120: Closing Balance | I120: =I117+I118-I119 -> 156315.3695 | K120: =K117+K118-K119 -> 156315.3695 | M120: =M117+M118-M119 -> 156315.3695 | O120: =O117+O118-O119 -> 156315.3695 | Q120: =Q117+Q118-Q119 -> 156315.3695 | S120: =S117+S118-S119 -> 156315.3695
C122: Accumulated Depreciation
D123: Opening Balance | K123: =I126 -> -3256.570198 | M123: =K126 -> -6513.140396 | O123: =M126 -> -9769.710594 | Q123: =O126 -> -13026.28079 | S123: =Q126 -> -16152.58818
D124: Amortization expense during year | I124: =IF(ISERROR(-(I118/('3. Cost_of_Service_Parameters'!G55)+MIN((I117/'3. Cost_of_Service_Parameters'!G55),(I117+I123)))), 0, -(I118/('3. Cost_of_Service_Parameters'!G55)+MIN((I117/'3. Cost_of_Service_Parameters'!G55),(I117+I123)))) -> -3256.570198 | K124: =IF(ISERROR(-(K118/('3. Cost_of_Service_Parameters'!I55*2)+MIN((K117/'3. Cost_of_Service_Parameters'!I55),(K117+K123)))), 0, -(K118/('3. Cost_of_Service_Parameters'!I55*2)+MIN((K117/'3. Cost_of_Service_Parameters'!I55),(K117+K123)))) -> -3256.570198 | M124: =IF(ISERROR(-(M118/('3. Cost_of_Service_Parameters'!K55*2)+MIN((M117/'3. Cost_of_Service_Parameters'!K55),(M117+M123)))), 0, -(M118/('3. Cost_of_Service_Parameters'!K55*2)+MIN((M117/'3. Cost_of_Service_Parameters'!K55),(M117+M123)))) -> -3256.570198 | O124: =IF(ISERROR(-(O118/('3. Cost_of_Service_Parameters'!M55*2)+MIN((O117/'3. Cost_of_Service_Parameters'!M55),(O117+O123)))), 0, -(O118/('3. Cost_of_Service_Parameters'!M55*2)+MIN((O117/'3. Cost_of_Service_Parameters'!M55),(O117+O123)))) -> -3256.570198 | Q124: =IF(ISERROR(-(Q118/('3. Cost_of_Service_Parameters'!O55*2)+MIN((Q117/'3. Cost_of_Service_Parameters'!O55),(Q117+Q123)))), 0, -(Q118/('3. Cost_of_Service_Parameters'!O55*2)+MIN((Q117/'3. Cost_of_Service_Parameters'!O55),(Q117+Q123)))) -> -3126.30739 | S124: =IF(ISERROR(-(S118/('3. Cost_of_Service_Parameters'!Q55*2)+MIN((S117/'3. Cost_of_Service_Parameters'!Q55),(S117+S123)))), 0, -(S118/('3. Cost_of_Service_Parameters'!Q55*2)+MIN((S117/'3. Cost_of_Service_Parameters'!Q55),(S117+S123)))) -> -3126.30739
D125: Retirements/Removals (if applicable)
D126: Closing Balance | I126: =I123+I124-I125 -> -3256.570198 | K126: =K123+K124-K125 -> -6513.140396 | M126: =M123+M124-M125 -> -9769.710594 | O126: =O123+O124-O125 -> -13026.28079 | Q126: =Q123+Q124-Q125 -> -16152.58818 | S126: =S123+S124-S125 -> -19278.89557
C128: Net Book Value
D129: Opening Balance | I129: =I117+I123 -> 0 | K129: =I130 -> 153058.7993 | M129: =K130 -> 149802.2291 | O129: =M130 -> 146545.6589 | Q129: =O130 -> 143289.0887 | S129: =Q130 -> 140162.7813
D130: Closing Balance | I130: =I120+I126 -> 153058.7993 | K130: =K120+K126 -> 149802.2291 | M130: =M120+M126 -> 146545.6589 | O130: =O120+O126 -> 143289.0887 | Q130: =Q120+Q126 -> 140162.7813 | S130: =S120+S126 -> 137036.4739
D131: Incremental CAPEX | I131: =I130 -> 153058.7993 | K131: =AVERAGE(K129:K130) -> 151430.5142 | M131: =AVERAGE(M129:M130) -> 148173.944 | O131: =AVERAGE(O129:O130) -> 144917.3738 | Q131: =AVERAGE(Q129:Q130) -> 141725.935 | S131: =AVERAGE(S129:S130) -> 138599.6276
B133: Net Fixed Assets - UG Transformers
C135: Gross Book Value
D136: Opening Balance | K136: =I139 -> 0 | M136: =K139 -> 0 | O136: =M139 -> 0 | Q136: =O139 -> 0 | S136: =Q139 -> 0
D137: Capital Additions during year (from ICM Costs) | I137: ='2. ICM_Costs'!G194 -> 0 | K137: ='2. ICM_Costs'!I194 -> 0
D138: Retirements/Removals (if applicable)
D139: Closing Balance | I139: =I136+I137-I138 -> 0 | K139: =K136+K137-K138 -> 0 | M139: =M136+M137-M138 -> 0 | O139: =O136+O137-O138 -> 0 | Q139: =Q136+Q137-Q138 -> 0 | S139: =S136+S137-S138 -> 0
C141: Accumulated Depreciation
D142: Opening Balance | K142: =I145 -> 0 | M142: =K145 -> 0 | O142: =M145 -> 0 | Q142: =O145 -> 0 | S142: =Q145 -> 0
D143: Amortization expense during year | I143: =IF(ISERROR(-(I137/('3. Cost_of_Service_Parameters'!G57)+MIN((I136/'3. Cost_of_Service_Parameters'!G57),(I136+I142)))), 0, -(I137/('3. Cost_of_Service_Parameters'!G57)+MIN((I136/'3. Cost_of_Service_Parameters'!G57),(I136+I142)))) -> 0 | K143: =IF(ISERROR(-(K137/('3. Cost_of_Service_Parameters'!I57*2)+MIN((K136/'3. Cost_of_Service_Parameters'!I57),(K136+K142)))), 0, -(K137/('3. Cost_of_Service_Parameters'!I57*2)+MIN((K136/'3. Cost_of_Service_Parameters'!I57),(K136+K142)))) -> 0 | M143: =IF(ISERROR(-(M137/('3. Cost_of_Service_Parameters'!K57*2)+MIN((M136/'3. Cost_of_Service_Parameters'!K57),(M136+M142)))), 0, -(M137/('3. Cost_of_Service_Parameters'!K57*2)+MIN((M136/'3. Cost_of_Service_Parameters'!K57),(M136+M142)))) -> 0 | O143: =IF(ISERROR(-(O137/('3. Cost_of_Service_Parameters'!M57*2)+MIN((O136/'3. Cost_of_Service_Parameters'!M57),(O136+O142)))), 0, -(O137/('3. Cost_of_Service_Parameters'!M57*2)+MIN((O136/'3. Cost_of_Service_Parameters'!M57),(O136+O142)))) -> 0 | Q143: =IF(ISERROR(-(Q137/('3. Cost_of_Service_Parameters'!O57*2)+MIN((Q136/'3. Cost_of_Service_Parameters'!O57),(Q136+Q142)))), 0, -(Q137/('3. Cost_of_Service_Parameters'!O57*2)+MIN((Q136/'3. Cost_of_Service_Parameters'!O57),(Q136+Q142)))) -> 0 | S143: =IF(ISERROR(-(S137/('3. Cost_of_Service_Parameters'!Q57*2)+MIN((S136/'3. Cost_of_Service_Parameters'!Q57),(S136+S142)))), 0, -(S137/('3. Cost_of_Service_Parameters'!Q57*2)+MIN((S136/'3. Cost_of_Service_Parameters'!Q57),(S136+S142)))) -> 0
D144: Retirements/Removals (if applicable)
D145: Closing Balance | I145: =I142+I143-I144 -> 0 | K145: =K142+K143-K144 -> 0 | M145: =M142+M143-M144 -> 0 | O145: =O142+O143-O144 -> 0 | Q145: =Q142+Q143-Q144 -> 0 | S145: =S142+S143-S144 -> 0
C147: Net Book Value
D148: Opening Balance | I148: =I136+I142 -> 0 | K148: =I149 -> 0 | M148: =K149 -> 0 | O148: =M149 -> 0 | Q148: =O149 -> 0 | S148: =Q149 -> 0
D149: Closing Balance | I149: =I139+I145 -> 0 | K149: =K139+K145 -> 0 | M149: =M139+M145 -> 0 | O149: =O139+O145 -> 0 | Q149: =Q139+Q145 -> 0 | S149: =S139+S145 -> 0
D150: Incremental CAPEX | I150: =I149 -> 0 | K150: =AVERAGE(K148:K149) -> 0 | M150: =AVERAGE(M148:M149) -> 0 | O150: =AVERAGE(O148:O149) -> 0 | Q150: =AVERAGE(Q148:Q149) -> 0 | S150: =AVERAGE(S148:S149) -> 0
B152: Net Fixed Assets - UG Conduit
C154: Gross Book Value
D155: Opening Balance | K155: =I158 -> 0 | M155: =K158 -> 0 | O155: =M158 -> 0 | Q155: =O158 -> 0 | S155: =Q158 -> 0
D156: Capital Additions during year (from ICM Costs) | I156: ='2. ICM_Costs'!G196 -> 0 | K156: ='2. ICM_Costs'!I196 -> 0
D157: Retirements/Removals (if applicable)
D158: Closing Balance | I158: =I155+I156-I157 -> 0 | K158: =K155+K156-K157 -> 0 | M158: =M155+M156-M157 -> 0 | O158: =O155+O156-O157 -> 0 | Q158: =Q155+Q156-Q157 -> 0 | S158: =S155+S156-S157 -> 0
C160: Accumulated Depreciation
D161: Opening Balance | K161: =I164 -> 0 | M161: =K164 -> 0 | O161: =M164 -> 0 | Q161: =O164 -> 0 | S161: =Q164 -> 0
D162: Amortization expense during year | I162: =IF(ISERROR(-(I156/('3. Cost_of_Service_Parameters'!G59)+MIN((I155/'3. Cost_of_Service_Parameters'!G59),(I155+I161)))), 0, -(I156/('3. Cost_of_Service_Parameters'!G59)+MIN((I155/'3. Cost_of_Service_Parameters'!G59),(I155+I161)))) -> 0 | K162: =IF(ISERROR(-(K156/('3. Cost_of_Service_Parameters'!I59*2)+MIN((K155/'3. Cost_of_Service_Parameters'!I59),(K155+K161)))), 0, -(K156/('3. Cost_of_Service_Parameters'!I59*2)+MIN((K155/'3. Cost_of_Service_Parameters'!I59),(K155+K161)))) -> 0 | M162: =IF(ISERROR(-(M156/('3. Cost_of_Service_Parameters'!K59*2)+MIN((M155/'3. Cost_of_Service_Parameters'!K59),(M155+M161)))), 0, -(M156/('3. Cost_of_Service_Parameters'!K59*2)+MIN((M155/'3. Cost_of_Service_Parameters'!K59),(M155+M161)))) -> 0 | O162: =IF(ISERROR(-(O156/('3. Cost_of_Service_Parameters'!M59*2)+MIN((O155/'3. Cost_of_Service_Parameters'!M59),(O155+O161)))), 0, -(O156/('3. Cost_of_Service_Parameters'!M59*2)+MIN((O155/'3. Cost_of_Service_Parameters'!M59),(O155+O161)))) -> 0 | Q162: =IF(ISERROR(-(Q156/('3. Cost_of_Service_Parameters'!O59*2)+MIN((Q155/'3. Cost_of_Service_Parameters'!O59),(Q155+Q161)))), 0, -(Q156/('3. Cost_of_Service_Parameters'!O59*2)+MIN((Q155/'3. Cost_of_Service_Parameters'!O59),(Q155+Q161)))) -> 0 | S162: =IF(ISERROR(-(S156/('3. Cost_of_Service_Parameters'!Q59*2)+MIN((S155/'3. Cost_of_Service_Parameters'!Q59),(S155+S161)))), 0, -(S156/('3. Cost_of_Service_Parameters'!Q59*2)+MIN((S155/'3. Cost_of_Service_Parameters'!Q59),(S155+S161)))) -> 0
D163: Retirements/Removals (if applicable)
D164: Closing Balance | I164: =I161+I162-I163 -> 0 | K164: =K161+K162-K163 -> 0 | M164: =M161+M162-M163 -> 0 | O164: =O161+O162-O163 -> 0 | Q164: =Q161+Q162-Q163 -> 0 | S164: =S161+S162-S163 -> 0
C166: Net Book Value
D167: Opening Balance | I167: =I155+I161 -> 0 | K167: =I168 -> 0 | M167: =K168 -> 0 | O167: =M168 -> 0 | Q167: =O168 -> 0 | S167: =Q168 -> 0
D168: Closing Balance | I168: =I158+I164 -> 0 | K168: =K158+K164 -> 0 | M168: =M158+M164 -> 0 | O168: =O158+O164 -> 0 | Q168: =Q158+Q164 -> 0 | S168: =S158+S164 -> 0
D169: Incremental CAPEX | I169: =I168 -> 0 | K169: =AVERAGE(K167:K168) -> 0 | M169: =AVERAGE(M167:M168) -> 0 | O169: =AVERAGE(O167:O168) -> 0 | Q169: =AVERAGE(Q167:Q168) -> 0 | S169: =AVERAGE(S167:S168) -> 0
B171: Net Fixed Assets - UG Prim XLPE TR
C173: Gross Book Value
D174: Opening Balance | K174: =I177 -> 93789.2217 | M174: =K177 -> 93789.2217 | O174: =M177 -> 93789.2217 | Q174: =O177 -> 93789.2217 | S174: =Q177 -> 93789.2217
D175: Capital Additions during year (from ICM Costs) | I175: ='2. ICM_Costs'!G198 -> 93789.2217 | K175: ='2. ICM_Costs'!I198 -> 0
D176: Retirements/Removals (if applicable)
D177: Closing Balance | I177: =I174+I175-I176 -> 93789.2217 | K177: =K174+K175-K176 -> 93789.2217 | M177: =M174+M175-M176 -> 93789.2217 | O177: =O174+O175-O176 -> 93789.2217 | Q177: =Q174+Q175-Q176 -> 93789.2217 | S177: =S174+S175-S176 -> 93789.2217
C179: Accumulated Depreciation
D180: Opening Balance | K180: =I183 -> -2468.137413 | M180: =K183 -> -4936.274826 | O180: =M183 -> -7404.412239 | Q180: =O183 -> -9872.549653 | S180: =Q183 -> -11956.75458
D181: Amortization expense during year | I181: =IF(ISERROR(-(I175/('3. Cost_of_Service_Parameters'!G61)+MIN((I174/'3. Cost_of_Service_Parameters'!G61),(I174+I180)))), 0, -(I175/('3. Cost_of_Service_Parameters'!G61)+MIN((I174/'3. Cost_of_Service_Parameters'!G61),(I174+I180)))) -> -2468.137413 | K181: =IF(ISERROR(-(K175/('3. Cost_of_Service_Parameters'!I61*2)+MIN((K174/'3. Cost_of_Service_Parameters'!I61),(K174+K180)))), 0, -(K175/('3. Cost_of_Service_Parameters'!I61*2)+MIN((K174/'3. Cost_of_Service_Parameters'!I61),(K174+K180)))) -> -2468.137413 | M181: =IF(ISERROR(-(M175/('3. Cost_of_Service_Parameters'!K61*2)+MIN((M174/'3. Cost_of_Service_Parameters'!K61),(M174+M180)))), 0, -(M175/('3. Cost_of_Service_Parameters'!K61*2)+MIN((M174/'3. Cost_of_Service_Parameters'!K61),(M174+M180)))) -> -2468.137413 | O181: =IF(ISERROR(-(O175/('3. Cost_of_Service_Parameters'!M61*2)+MIN((O174/'3. Cost_of_Service_Parameters'!M61),(O174+O180)))), 0, -(O175/('3. Cost_of_Service_Parameters'!M61*2)+MIN((O174/'3. Cost_of_Service_Parameters'!M61),(O174+O180)))) -> -2468.137413 | Q181: =IF(ISERROR(-(Q175/('3. Cost_of_Service_Parameters'!O61*2)+MIN((Q174/'3. Cost_of_Service_Parameters'!O61),(Q174+Q180)))), 0, -(Q175/('3. Cost_of_Service_Parameters'!O61*2)+MIN((Q174/'3. Cost_of_Service_Parameters'!O61),(Q174+Q180)))) -> -2084.204927 | S181: =IF(ISERROR(-(S175/('3. Cost_of_Service_Parameters'!Q61*2)+MIN((S174/'3. Cost_of_Service_Parameters'!Q61),(S174+S180)))), 0, -(S175/('3. Cost_of_Service_Parameters'!Q61*2)+MIN((S174/'3. Cost_of_Service_Parameters'!Q61),(S174+S180)))) -> -2084.204927
D182: Retirements/Removals (if applicable)
D183: Closing Balance | I183: =I180+I181-I182 -> -2468.137413 | K183: =K180+K181-K182 -> -4936.274826 | M183: =M180+M181-M182 -> -7404.412239 | O183: =O180+O181-O182 -> -9872.549653 | Q183: =Q180+Q181-Q182 -> -11956.75458 | S183: =S180+S181-S182 -> -14040.95951
C185: Net Book Value
D186: Opening Balance | I186: =I174+I180 -> 0 | K186: =I187 -> 91321.08429 | M186: =K187 -> 88852.94687 | O186: =M187 -> 86384.80946 | Q186: =O187 -> 83916.67205 | S186: =Q187 -> 81832.46712
D187: Closing Balance | I187: =I177+I183 -> 91321.08429 | K187: =K177+K183 -> 88852.94687 | M187: =M177+M183 -> 86384.80946 | O187: =O177+O183 -> 83916.67205 | Q187: =Q177+Q183 -> 81832.46712 | S187: =S177+S183 -> 79748.26219
D188: Incremental CAPEX | I188: =I187 -> 91321.08429 | K188: =AVERAGE(K186:K187) -> 90087.01558 | M188: =AVERAGE(M186:M187) -> 87618.87817 | O188: =AVERAGE(O186:O187) -> 85150.74075 | Q188: =AVERAGE(Q186:Q187) -> 82874.56958 | S188: =AVERAGE(S186:S187) -> 80790.36466
B191: Net Fixed Assets - UG Sec - Dir Buried
C193: Gross Book Value
D194: Opening Balance | K194: =I197 -> 93789.2217 | M194: =K197 -> 93789.2217 | O194: =M197 -> 93789.2217 | Q194: =O197 -> 93789.2217 | S194: =Q197 -> 93789.2217
D195: Capital Additions during year (from ICM Costs) | I195: ='2. ICM_Costs'!G200 -> 93789.2217 | K195: ='2. ICM_Costs'!I226 -> 0
D196: Retirements/Removals (if applicable)
D197: Closing Balance | I197: =I194+I195-I196 -> 93789.2217 | K197: =K194+K195-K196 -> 93789.2217 | M197: =M194+M195-M196 -> 93789.2217 | O197: =O194+O195-O196 -> 93789.2217 | Q197: =Q194+Q195-Q196 -> 93789.2217 | S197: =S194+S195-S196 -> 93789.2217
C199: Accumulated Depreciation
D200: Opening Balance | K200: =I203 -> -3025.458765 | M200: =K203 -> -6050.917529 | O200: =M203 -> -9076.376294 | Q200: =O203 -> -12101.83506 | S200: =Q203 -> -15228.14245
D201: Amortization expense during year | I201: =IF(ISERROR(-(I195/('3. Cost_of_Service_Parameters'!G63)+MIN((I194/'3. Cost_of_Service_Parameters'!G63),(I194+I200)))), 0, -(I195/('3. Cost_of_Service_Parameters'!G63)+MIN((I194/'3. Cost_of_Service_Parameters'!G63),(I194+I200)))) -> -3025.458765 | K201: =IF(ISERROR(-(K195/('3. Cost_of_Service_Parameters'!I63*2)+MIN((K194/'3. Cost_of_Service_Parameters'!I63),(K194+K200)))), 0, -(K195/('3. Cost_of_Service_Parameters'!I63*2)+MIN((K194/'3. Cost_of_Service_Parameters'!I63),(K194+K200)))) -> -3025.458765 | M201: =IF(ISERROR(-(M195/('3. Cost_of_Service_Parameters'!K63*2)+MIN((M194/'3. Cost_of_Service_Parameters'!K63),(M194+M200)))), 0, -(M195/('3. Cost_of_Service_Parameters'!K63*2)+MIN((M194/'3. Cost_of_Service_Parameters'!K63),(M194+M200)))) -> -3025.458765 | O201: =IF(ISERROR(-(O195/('3. Cost_of_Service_Parameters'!M63*2)+MIN((O194/'3. Cost_of_Service_Parameters'!M63),(O194+O200)))), 0, -(O195/('3. Cost_of_Service_Parameters'!M63*2)+MIN((O194/'3. Cost_of_Service_Parameters'!M63),(O194+O200)))) -> -3025.458765 | Q201: =IF(ISERROR(-(Q195/('3. Cost_of_Service_Parameters'!O63*2)+MIN((Q194/'3. Cost_of_Service_Parameters'!O63),(Q194+Q200)))), 0, -(Q195/('3. Cost_of_Service_Parameters'!O63*2)+MIN((Q194/'3. Cost_of_Service_Parameters'!O63),(Q194+Q200)))) -> -3126.30739 | S201: =IF(ISERROR(-(S195/('3. Cost_of_Service_Parameters'!Q63*2)+MIN((S194/'3. Cost_of_Service_Parameters'!Q63),(S194+S200)))), 0, -(S195/('3. Cost_of_Service_Parameters'!Q63*2)+MIN((S194/'3. Cost_of_Service_Parameters'!Q63),(S194+S200)))) -> -3126.30739
D202: Retirements/Removals (if applicable)
D203: Closing Balance | I203: =I200+I201-I202 -> -3025.458765 | K203: =K200+K201-K202 -> -6050.917529 | M203: =M200+M201-M202 -> -9076.376294 | O203: =O200+O201-O202 -> -12101.83506 | Q203: =Q200+Q201-Q202 -> -15228.14245 | S203: =S200+S201-S202 -> -18354.44984
C205: Net Book Value
D206: Opening Balance | I206: =I194+I200 -> 0 | K206: =I207 -> 90763.76294 | M206: =K207 -> 87738.30417 | O206: =M207 -> 84712.84541 | Q206: =O207 -> 81687.38664 | S206: =Q207 -> 78561.07925
D207: Closing Balance | I207: =I197+I203 -> 90763.76294 | K207: =K197+K203 -> 87738.30417 | M207: =M197+M203 -> 84712.84541 | O207: =O197+O203 -> 81687.38664 | Q207: =Q197+Q203 -> 78561.07925 | S207: =S197+S203 -> 75434.77186
D208: Incremental CAPEX | I208: =I207 -> 90763.76294 | K208: =AVERAGE(K206:K207) -> 89251.03355 | M208: =AVERAGE(M206:M207) -> 86225.57479 | O208: =AVERAGE(O206:O207) -> 83200.11602 | Q208: =AVERAGE(Q206:Q207) -> 80124.23295 | S208: =AVERAGE(S206:S207) -> 76997.92556
B211: Net Fixed Assets - UG Sec In Duct/Svs
C213: Gross Book Value
D214: Opening Balance | K214: =I217 -> 0 | M214: =K217 -> 0 | O214: =M217 -> 0 | Q214: =O217 -> 0 | S214: =Q217 -> 0
D215: Capital Additions during year (from ICM Costs) | I215: ='2. ICM_Costs'!G202 -> 0 | K215: ='2. ICM_Costs'!I246 -> 0
D216: Retirements/Removals (if applicable)
D217: Closing Balance | I217: =I214+I215-I216 -> 0 | K217: =K214+K215-K216 -> 0 | M217: =M214+M215-M216 -> 0 | O217: =O214+O215-O216 -> 0 | Q217: =Q214+Q215-Q216 -> 0 | S217: =S214+S215-S216 -> 0
C219: Accumulated Depreciation
D220: Opening Balance | K220: =I223 -> 0 | M220: =K223 -> 0 | O220: =M223 -> 0 | Q220: =O223 -> 0 | S220: =Q223 -> 0
D221: Amortization expense during year | I221: =IF(ISERROR(-(I215/('3. Cost_of_Service_Parameters'!G65)+MIN((I214/'3. Cost_of_Service_Parameters'!G65),(I214+I220)))), 0, -(I215/('3. Cost_of_Service_Parameters'!G65)+MIN((I214/'3. Cost_of_Service_Parameters'!G65),(I214+I220)))) -> 0 | K221: =IF(ISERROR(-(K215/('3. Cost_of_Service_Parameters'!I65*2)+MIN((K214/'3. Cost_of_Service_Parameters'!I65),(K214+K220)))), 0, -(K215/('3. Cost_of_Service_Parameters'!I65*2)+MIN((K214/'3. Cost_of_Service_Parameters'!I65),(K214+K220)))) -> 0 | M221: =IF(ISERROR(-(M215/('3. Cost_of_Service_Parameters'!K65*2)+MIN((M214/'3. Cost_of_Service_Parameters'!K65),(M214+M220)))), 0, -(M215/('3. Cost_of_Service_Parameters'!K65*2)+MIN((M214/'3. Cost_of_Service_Parameters'!K65),(M214+M220)))) -> 0 | O221: =IF(ISERROR(-(O215/('3. Cost_of_Service_Parameters'!M65*2)+MIN((O214/'3. Cost_of_Service_Parameters'!M65),(O214+O220)))), 0, -(O215/('3. Cost_of_Service_Parameters'!M65*2)+MIN((O214/'3. Cost_of_Service_Parameters'!M65),(O214+O220)))) -> 0 | Q221: =IF(ISERROR(-(Q215/('3. Cost_of_Service_Parameters'!O65*2)+MIN((Q214/'3. Cost_of_Service_Parameters'!O65),(Q214+Q220)))), 0, -(Q215/('3. Cost_of_Service_Parameters'!O65*2)+MIN((Q214/'3. Cost_of_Service_Parameters'!O65),(Q214+Q220)))) -> 0 | S221: =IF(ISERROR(-(S215/('3. Cost_of_Service_Parameters'!Q65*2)+MIN((S214/'3. Cost_of_Service_Parameters'!Q65),(S214+S220)))), 0, -(S215/('3. Cost_of_Service_Parameters'!Q65*2)+MIN((S214/'3. Cost_of_Service_Parameters'!Q65),(S214+S220)))) -> 0
D222: Retirements/Removals (if applicable)
D223: Closing Balance | I223: =I220+I221-I222 -> 0 | K223: =K220+K221-K222 -> 0 | M223: =M220+M221-M222 -> 0 | O223: =O220+O221-O222 -> 0 | Q223: =Q220+Q221-Q222 -> 0 | S223: =S220+S221-S222 -> 0
C225: Net Book Value
D226: Opening Balance | I226: =I214+I220 -> 0 | K226: =I227 -> 0 | M226: =K227 -> 0 | O226: =M227 -> 0 | Q226: =O227 -> 0 | S226: =Q227 -> 0
D227: Closing Balance | I227: =I217+I223 -> 0 | K227: =K217+K223 -> 0 | M227: =M217+M223 -> 0 | O227: =O217+O223 -> 0 | Q227: =Q217+Q223 -> 0 | S227: =S217+S223 -> 0
D228: Incremental CAPEX | I228: =I227 -> 0 | K228: =AVERAGE(K226:K227) -> 0 | M228: =AVERAGE(M226:M227) -> 0 | O228: =AVERAGE(O226:O227) -> 0 | Q228: =AVERAGE(Q226:Q227) -> 0 | S228: =AVERAGE(S226:S227) -> 0
B231: Net Fixed Assets - Air Insulated Switchgear
C233: Gross Book Value
D234: Opening Balance | K234: =I237 -> 0 | M234: =K237 -> 0 | O234: =M237 -> 0 | Q234: =O237 -> 0 | S234: =Q237 -> 0
D235: Capital Additions during year (from ICM Costs) | I235: ='2. ICM_Costs'!G204 -> 0 | K235: ='2. ICM_Costs'!I266 -> 0
D236: Retirements/Removals (if applicable)
D237: Closing Balance | I237: =I234+I235-I236 -> 0 | K237: =K234+K235-K236 -> 0 | M237: =M234+M235-M236 -> 0 | O237: =O234+O235-O236 -> 0 | Q237: =Q234+Q235-Q236 -> 0 | S237: =S234+S235-S236 -> 0
C239: Accumulated Depreciation
D240: Opening Balance | K240: =I243 -> 0 | M240: =K243 -> 0 | O240: =M243 -> 0 | Q240: =O243 -> 0 | S240: =Q243 -> 0
D241: Amortization expense during year | I241: =IF(ISERROR(-(I235/('3. Cost_of_Service_Parameters'!G67)+MIN((I234/'3. Cost_of_Service_Parameters'!G67),(I234+I240)))), 0, -(I235/('3. Cost_of_Service_Parameters'!G67)+MIN((I234/'3. Cost_of_Service_Parameters'!G67),(I234+I240)))) -> 0 | K241: =IF(ISERROR(-(K235/('3. Cost_of_Service_Parameters'!I67*2)+MIN((K234/'3. Cost_of_Service_Parameters'!I67),(K234+K240)))), 0, -(K235/('3. Cost_of_Service_Parameters'!I67*2)+MIN((K234/'3. Cost_of_Service_Parameters'!I67),(K234+K240)))) -> 0 | M241: =IF(ISERROR(-(M235/('3. Cost_of_Service_Parameters'!K67*2)+MIN((M234/'3. Cost_of_Service_Parameters'!K67),(M234+M240)))), 0, -(M235/('3. Cost_of_Service_Parameters'!K67*2)+MIN((M234/'3. Cost_of_Service_Parameters'!K67),(M234+M240)))) -> 0 | O241: =IF(ISERROR(-(O235/('3. Cost_of_Service_Parameters'!M67*2)+MIN((O234/'3. Cost_of_Service_Parameters'!M67),(O234+O240)))), 0, -(O235/('3. Cost_of_Service_Parameters'!M67*2)+MIN((O234/'3. Cost_of_Service_Parameters'!M67),(O234+O240)))) -> 0 | Q241: =IF(ISERROR(-(Q235/('3. Cost_of_Service_Parameters'!O67*2)+MIN((Q234/'3. Cost_of_Service_Parameters'!O67),(Q234+Q240)))), 0, -(Q235/('3. Cost_of_Service_Parameters'!O67*2)+MIN((Q234/'3. Cost_of_Service_Parameters'!O67),(Q234+Q240)))) -> 0 | S241: =IF(ISERROR(-(S235/('3. Cost_of_Service_Parameters'!Q67*2)+MIN((S234/'3. Cost_of_Service_Parameters'!Q67),(S234+S240)))), 0, -(S235/('3. Cost_of_Service_Parameters'!Q67*2)+MIN((S234/'3. Cost_of_Service_Parameters'!Q67),(S234+S240)))) -> 0
D242: Retirements/Removals (if applicable)
D243: Closing Balance | I243: =I240+I241-I242 -> 0 | K243: =K240+K241-K242 -> 0 | M243: =M240+M241-M242 -> 0 | O243: =O240+O241-O242 -> 0 | Q243: =Q240+Q241-Q242 -> 0 | S243: =S240+S241-S242 -> 0
C245: Net Book Value
D246: Opening Balance | I246: =I234+I240 -> 0 | K246: =I247 -> 0 | M246: =K247 -> 0 | O246: =M247 -> 0 | Q246: =O247 -> 0 | S246: =Q247 -> 0
D247: Closing Balance | I247: =I237+I243 -> 0 | K247: =K237+K243 -> 0 | M247: =M237+M243 -> 0 | O247: =O237+O243 -> 0 | Q247: =Q237+Q243 -> 0 | S247: =S237+S243 -> 0
D248: Incremental CAPEX | I248: =I247 -> 0 | K248: =AVERAGE(K246:K247) -> 0 | M248: =AVERAGE(M246:M247) -> 0 | O248: =AVERAGE(O246:O247) -> 0 | Q248: =AVERAGE(Q246:Q247) -> 0 | S248: =AVERAGE(S246:S247) -> 0
B251: Net Fixed Assets - Solid Dielectric Switchgear
C253: Gross Book Value
D254: Opening Balance | K254: =I257 -> 0 | M254: =K257 -> 0 | O254: =M257 -> 0 | Q254: =O257 -> 0 | S254: =Q257 -> 0
D255: Capital Additions during year (from ICM Costs) | I255: ='2. ICM_Costs'!G206 -> 0 | K255: ='2. ICM_Costs'!I286 -> 0
D256: Retirements/Removals (if applicable)
D257: Closing Balance | I257: =I254+I255-I256 -> 0 | K257: =K254+K255-K256 -> 0 | M257: =M254+M255-M256 -> 0 | O257: =O254+O255-O256 -> 0 | Q257: =Q254+Q255-Q256 -> 0 | S257: =S254+S255-S256 -> 0
C259: Accumulated Depreciation
D260: Opening Balance | K260: =I263 -> 0 | M260: =K263 -> 0 | O260: =M263 -> 0 | Q260: =O263 -> 0 | S260: =Q263 -> 0
D261: Amortization expense during year | I261: =IF(ISERROR(-(I255/('3. Cost_of_Service_Parameters'!G69)+MIN((I254/'3. Cost_of_Service_Parameters'!G69),(I254+I260)))), 0, -(I255/('3. Cost_of_Service_Parameters'!G69)+MIN((I254/'3. Cost_of_Service_Parameters'!G69),(I254+I260)))) -> 0 | K261: =IF(ISERROR(-(K255/('3. Cost_of_Service_Parameters'!I69*2)+MIN((K254/'3. Cost_of_Service_Parameters'!I69),(K254+K260)))), 0, -(K255/('3. Cost_of_Service_Parameters'!I69*2)+MIN((K254/'3. Cost_of_Service_Parameters'!I69),(K254+K260)))) -> 0 | M261: =IF(ISERROR(-(M255/('3. Cost_of_Service_Parameters'!K69*2)+MIN((M254/'3. Cost_of_Service_Parameters'!K69),(M254+M260)))), 0, -(M255/('3. Cost_of_Service_Parameters'!K69*2)+MIN((M254/'3. Cost_of_Service_Parameters'!K69),(M254+M260)))) -> 0 | O261: =IF(ISERROR(-(O255/('3. Cost_of_Service_Parameters'!M69*2)+MIN((O254/'3. Cost_of_Service_Parameters'!M69),(O254+O260)))), 0, -(O255/('3. Cost_of_Service_Parameters'!M69*2)+MIN((O254/'3. Cost_of_Service_Parameters'!M69),(O254+O260)))) -> 0 | Q261: =IF(ISERROR(-(Q255/('3. Cost_of_Service_Parameters'!O69*2)+MIN((Q254/'3. Cost_of_Service_Parameters'!O69),(Q254+Q260)))), 0, -(Q255/('3. Cost_of_Service_Parameters'!O69*2)+MIN((Q254/'3. Cost_of_Service_Parameters'!O69),(Q254+Q260)))) -> 0 | S261: =IF(ISERROR(-(S255/('3. Cost_of_Service_Parameters'!Q69*2)+MIN((S254/'3. Cost_of_Service_Parameters'!Q69),(S254+S260)))), 0, -(S255/('3. Cost_of_Service_Parameters'!Q69*2)+MIN((S254/'3. Cost_of_Service_Parameters'!Q69),(S254+S260)))) -> 0
D262: Retirements/Removals (if applicable)
D263: Closing Balance | I263: =I260+I261-I262 -> 0 | K263: =K260+K261-K262 -> 0 | M263: =M260+M261-M262 -> 0 | O263: =O260+O261-O262 -> 0 | Q263: =Q260+Q261-Q262 -> 0 | S263: =S260+S261-S262 -> 0
C265: Net Book Value
D266: Opening Balance | I266: =I254+I260 -> 0 | K266: =I267 -> 0 | M266: =K267 -> 0 | O266: =M267 -> 0 | Q266: =O267 -> 0 | S266: =Q267 -> 0
D267: Closing Balance | I267: =I257+I263 -> 0 | K267: =K257+K263 -> 0 | M267: =M257+M263 -> 0 | O267: =O257+O263 -> 0 | Q267: =Q257+Q263 -> 0 | S267: =S257+S263 -> 0
D268: Incremental CAPEX | I268: =I267 -> 0 | K268: =AVERAGE(K266:K267) -> 0 | M268: =AVERAGE(M266:M267) -> 0 | O268: =AVERAGE(O266:O267) -> 0 | Q268: =AVERAGE(Q266:Q267) -> 0 | S268: =AVERAGE(S266:S267) -> 0
B271: Net Fixed Assets - UG Cable Injection
C273: Gross Book Value
D274: Opening Balance | K274: =I277 -> 0 | M274: =K277 -> 0 | O274: =M277 -> 0 | Q274: =O277 -> 0 | S274: =Q277 -> 0
... 60 more rows

Sheet 5. UCC_Calculation
A18: Sheet 6: CCA For PILs Calculation
A20: UCC/Class 47 | D20: ='3. Cost_of_Service_Parameters'!G19 -> 2021
D21: ='2. ICM_Costs'!G19 -> Audited Actual
A23: Opening UCC | D23: 0
A24: Capital Additions | D24: ='2. ICM_Costs'!G219 -> 3126307.39
A25: Retirements/Removals (if applicable)
A26: UCC Full Year | D26: =SUM(D23:D24)-D25 -> 3126307.39
A29: CCA Rate Class | D29: ='3. Cost_of_Service_Parameters'!G83 -> 47
A30: CCA Rate | D30: ='3. Cost_of_Service_Parameters'!G84 -> 0.08
A31: CCA | D31: =D26*D30 -> 250104.5912
A32: Closing UCC | D32: =IF((D26-D31)<0, 0, D26-D31) -> 2876202.799
A34: UCC/Class 8 | D34: =D20 -> 2021
D35: Audited Actual
A37: Opening UCC | D37: 0
A38: Capital Additions RTU's | D38: 0
A39: Retirements/Removals (if applicable)
A40: UCC Full Year | D40: =SUM(D37:D38)-D39 -> 0
A43: CCA Rate Class | D43: ='3. Cost_of_Service_Parameters'!G107 -> 47
A44: CCA Rate | D44: ='3. Cost_of_Service_Parameters'!G108 -> 0.08
A45: CCA | D45: =D40*D44 -> 0
A46: Closing UCC | D46: =IF((D40-D45)<0, 0, D40-D45) -> 0

Sheet 6. ICMIRR_2021
A11: Sheet 6: | C11: Incremental Capital Adjustment
I24: 2021 OEB Approved
C26: Return on Rate Base
C27: Incremental Capital CAPEX | F27: ='2. ICM_Costs'!G219 -> 3126307.39 | G27: B | K27: 2885574
C28: Depreciation Expense | F28: =-'4. ICM_Assets_and_Rate_Base'!I357 -> 67915.82292 | G28: C | K28: 64123.86133
C29: Incremental Capital CAPEX to be included in Rate Base | F29: =(F27+(F27-F28))/2 -> 3092349.479 | G29: D = B - C | K29: =(K27+(K27-K28))/2 -> 2853512.069
C31: Deemed ShortTerm Debt % | D31: ='3. Cost_of_Service_Parameters'!G22 -> 0.04 | E31: E | F31: =F29*D31 -> 123693.9791 | G31: G = D * E | I31: =D31 -> 0.04 | K31: =K29*I31 -> 114140.4828
C32: Deemed Long Term Debt % | D32: ='3. Cost_of_Service_Parameters'!G23 -> 0.56 | E32: F | F32: =F29*D32 -> 1731715.708 | G32: H = D * F | I32: =D32 -> 0.56 | K32: =K29*I32 -> 1597966.759
C34: Short Term Interest | D34: ='3. Cost_of_Service_Parameters'!G29 -> 0.0176 | E34: I | F34: =F31*D34 -> 2177.014033 | G34: K = G * I | I34: =D34 -> 0.0176 | K34: =K31*I34 -> 2008.872497
C35: Long Term Interest | D35: ='3. Cost_of_Service_Parameters'!G30 -> 0.03882503715 | E35: J | F35: =F32*D35 -> 67233.92669 | G35: L = H * J | I35: =D35 -> 0.03882503715 | K35: =K32*I35 -> 62041.11877
C37: Return on Rate Base - Interest | F37: =SUM(F34:F35) -> 69410.94073 | G37: M = K + L | K37: =SUM(K34:K35) -> 64049.99127
N39: aaa
C40: Deemed Equity % | D40: ='3. Cost_of_Service_Parameters'!G24 -> 0.4 | E40: N | F40: =F29*D40 -> 1236939.791 | G40: P = D * N | I40: 0.4 | K40: =K29*I40 -> 1141404.828
C42: Return on Rate Base -Equity | D42: ='3. Cost_of_Service_Parameters'!G31 -> 0.0878 | E42: O | F42: =F40*D42 -> 108603.3137 | G42: Q = P * O | I42: =D42 -> 0.0878 | K42: =K40*I42 -> 100215.3439
C44: Return on Rate Base - Total | F44: =F37+F42 -> 178014.2544 | G44: R = M + Q | K44: =K37+K42 -> 164265.3351
C48: Amortization Expense
C50: Amortization Expense - Incremental | E50: C | F50: =F28 -> 67915.82292 | G50: S | K50: =K28 -> 64123.86133
C53: Grossed up PIL's
C55: Regulatory Taxable Income | E55: O | F55: =F42 -> 108603.3137 | G55: T | K55: =K42 -> 100215.3439
C57: Add Back Amortization Expense | E57: S | F57: =F50 -> 67915.82292 | G57: U | K57: =K50 -> 64123.86133
C59: Deduct CCA | F59: ='5. UCC_Calculation'!D31+'5. UCC_Calculation'!D45 -> 250104.5912 | G59: V | K59: 230845.9008
C61: Incremental Taxable Income | F61: =F55+F57-F59 -> -73585.45459 | G61: W = T + U - V | K61: =K55+K57-K59 -> -66506.69559
C63: Current Tax Rate (F1.1 Z-Factor Tax Changes) | D63: ='3. Cost_of_Service_Parameters'!G40 -> 0.265 | E63: X | I63: =D63 -> 0.265
C65: PIL's Before Gross Up | F65: =F61*D63 -> -19500.14547 | G65: Y = W * X | K65: =K61*I63 -> -17624.27433
C67: Incremental Grossed Up PIL's | F67: =F65/(1-D63) -> -26530.81016 | G67: Z = Y / ( 1 - X ) | K67: =K65/(1-I63) -> -23978.60453
C70: Ontario Capital Tax
C71: Incremental Capital CAPEX | F71: =F27 -> 3126307.39 | G71: AA | K71: =K27 -> 2885574
C73: Less : Available Capital Exemption (if any) | F73: 0 | G73: AB | K73: 0
C75: Incremental Capital CAPEX subject to OCT | F75: =F71-F73 -> 3126307.39 | G75: AC = AA - AB | K75: =K71-K73 -> 2885574
C77: Ontario Capital Tax Rate (F1.1 Z-Factor Tax Changes) | D77: 0 | E77: AD
C79: Incremental Ontario Capital Tax | F79: =F75*D77 -> 0 | G79: AE = AC * AD | K79: =K75*I77 -> 0
C82: Incremental Revenue Requirement
C83: Return on Rate Base - Total | E83: Q | F83: =F44 -> 178014.2544 | G83: AF | K83: =K44 -> 164265.3351
C84: Amortization Expense - Total | E84: S | F84: =F50 -> 67915.82292 | G84: AG | K84: =K50 -> 64123.86133
C85: Incremental Grossed Up PIL's | E85: Z | F85: =F67 -> -26530.81016 | G85: AH | K85: =K67 -> -23978.60453
C86: Incremental Ontario Capital Tax | E86: AE | F86: =F79 -> 0 | G86: AI | K86: =K79 -> 0
C88: Incremental Revenue Requirement | F88: =SUM(F83:F86) -> 219399.2672 | G88: AJ = AF + AG + AH + AI | K88: =SUM(K83:K86) -> 204410.5919

Sheet 7. Rate Riders Revs
B13: This worksheet calculates the rate riders revenues.
B17: Sheet 7: ICM Rate Rider Revenues
B22: Prescribed Interest Rates | C22: Approved Deferral and Variance Accounts | D22: CWIP | F22: Date | G22: Year | H22: Quarter | J22: Opening Balance (Principal) | K22: Rate Rider Revenues | L22: Interest Rate | M22: Interest | N22: Principal & Interest (Cumm.) | P22: Board Approved ICM Rate Rider | Q22: Board Approved ICM Rate Rider (Cumm.)
B24: 2018 Q1 | C24: 0.015 | D24: 0.0299 | F24: 2018-01-01 | G24: =YEAR(F24) -> 2018 | H24: =IF(MONTH(F24)=0,"",IF(MONTH(F24)<4,"Q1",IF(MONTH(F24)<7,"Q2",IF(MONTH(F24)<10,"Q3","Q4")))) -> Q1 | I24: =CONCATENATE(G24," ",H24) -> 2018 Q1 | J24: 0 | L24: =VLOOKUP(I24,$B$22:$D$59,2) -> 0.015 | M24: =ROUND(J24*L24/12,2) -> 0 | N24: =K24+M24 -> 0 | Q24: =P24 -> 0
B25: 2018 Q2 | C25: 0.0189 | D25: 0.0335 | F25: 2018-02-01 | G25: =YEAR(F25) -> 2018 | H25: =IF(MONTH(F25)=0,"",IF(MONTH(F25)<4,"Q1",IF(MONTH(F25)<7,"Q2",IF(MONTH(F25)<10,"Q3","Q4")))) -> Q1 | I25: =CONCATENATE(G25," ",H25) -> 2018 Q1 | J25: =J24+K24 -> 0 | L25: 0.015 | M25: =ROUND(J25*L25/12,2) -> 0 | N25: =N24+K25+M25 -> 0 | Q25: =Q24+P25 -> 0
B26: 2018 Q3 | C26: 0.0189 | D26: 0.0335 | F26: 2018-03-01 | G26: 2018 | H26: Q1 | I26: 2018 Q1 | J26: =J25+K25 -> 0 | L26: 0.015 | M26: 0 | N26: =N25+K26+M26 -> 0 | Q26: =Q25+P26 -> 0
B27: 2018 Q4 | C27: 0.0217 | D27: 0.0335 | F27: 2018-04-01 | G27: 2018 | H27: Q2 | I27: 2018 Q2 | J27: 0 | L27: 0.0189 | M27: 0 | N27: 0 | Q27: 0
B28: 2019 Q1 | C28: 0.0245 | D28: 0.0382 | F28: 2018-05-01 | G28: 2018 | H28: Q2 | I28: 2018 Q2 | J28: 0 | L28: 0.0189 | M28: 0 | N28: 0 | Q28: 0
B29: 2019 Q2 | C29: 0.0218 | D29: 0.0339 | F29: 2018-06-01 | G29: 2018 | H29: Q2 | I29: 2018 Q2 | J29: 0 | L29: 0.0189 | M29: 0 | N29: 0 | Q29: 0
B30: 2019 Q3 | C30: 0.0218 | D30: 0.0288 | F30: 2018-07-01 | G30: 2018 | H30: Q3 | I30: 2018 Q3 | J30: 0 | L30: 0.0189 | M30: 0 | N30: 0 | Q30: 0
B31: 2019 Q4 | C31: 0.0218 | D31: 0.0288 | F31: 2018-08-01 | G31: 2018 | H31: Q3 | I31: 2018 Q3 | J31: 0 | L31: 0.0189 | M31: 0 | N31: 0 | Q31: 0
B32: 2020 Q1 | C32: 0.0218 | D32: 0.0288 | F32: 2018-09-01 | G32: 2018 | H32: Q3 | I32: 2018 Q3 | J32: 0 | L32: 0.0189 | M32: 0 | N32: 0 | Q32: 0
B33: 2020 Q2 | C33: 0.0218 | D33: 0.0248 | F33: 2018-10-01 | G33: 2018 | H33: Q4 | I33: 2018 Q4 | J33: 0 | L33: 0.0217 | M33: 0 | N33: 0 | Q33: 0
B34: 2020 Q3 | C34: 0.0057 | D34: 0.0248 | F34: 2018-11-01 | G34: 2018 | H34: Q4 | I34: 2018 Q4 | J34: 0 | L34: 0.0217 | M34: 0 | N34: 0 | Q34: 0
B35: 2020 Q4 | C35: 0.0057 | D35: 0.0203 | F35: 2018-12-01 | G35: 2018 | H35: Q4 | I35: 2018 Q4 | J35: 0 | L35: 0.0217 | M35: 0 | N35: 0 | Q35: 0
B36: 2021 Q1 | C36: 0.0057 | D36: 0.0203 | F36: 2019-01-01 | G36: 2019 | H36: Q1 | I36: 2019 Q1 | J36: 0 | L36: 0.0245 | M36: 0 | N36: 0 | Q36: 0
B37: 2021 Q2 | C37: 0.0057 | D37: 0.0229 | F37: 2019-02-01 | G37: 2019 | H37: Q1 | I37: 2019 Q1 | J37: 0 | L37: 0.0245 | M37: 0 | N37: 0 | Q37: 0
B38: 2021 Q3 | C38: 0.0057 | D38: 0.0229 | F38: 2019-03-01 | G38: 2019 | H38: Q1 | I38: 2019 Q1 | J38: 0 | L38: 0.0245 | M38: 0 | N38: 0 | Q38: 0
B39: 2021 Q4 | C39: 0.0057 | D39: 0.0229 | F39: 2019-04-01 | G39: 2019 | H39: Q2 | I39: 2019 Q2 | J39: 0 | L39: 0.0218 | M39: 0 | N39: 0 | Q39: 0
B40: 2022 Q1 | C40: 0.0057 | D40: 0.0272 | F40: 2019-05-01 | G40: 2019 | H40: Q2 | I40: 2019 Q2 | J40: 0 | L40: 0.0218 | M40: 0 | N40: 0 | Q40: 0
B41: 2022 Q2 | C41: 0.0102 | D41: 0.0331 | F41: 2019-06-01 | G41: 2019 | H41: Q2 | I41: 2019 Q2 | J41: 0 | L41: 0.0218 | M41: 0 | N41: 0 | Q41: 0
B42: 2022 Q3 | C42: 0.022 | D42: 0.0466 | F42: 2019-07-01 | G42: 2019 | H42: Q3 | I42: 2019 Q3 | J42: 0 | L42: 0.0218 | M42: 0 | N42: 0 | Q42: 0
B43: 2022 Q4 | C43: 0.0387 | D43: 0.0501 | F43: 2019-08-01 | G43: 2019 | H43: Q3 | I43: 2019 Q3 | J43: 0 | L43: 0.0218 | M43: 0 | N43: 0 | Q43: 0
B44: 2023 Q1 | C44: 0.0473 | D44: 0.0501 | F44: 2019-09-01 | G44: 2019 | H44: Q3 | I44: 2019 Q3 | J44: 0 | L44: 0.0218 | M44: 0 | N44: 0 | Q44: 0
B45: 2023 Q2 | C45: 0.0498 | D45: 0.0501 | F45: 2019-10-01 | G45: 2019 | H45: Q4 | I45: 2019 Q4 | J45: 0 | L45: 0.0218 | M45: 0 | N45: 0 | Q45: 0
B46: 2023 Q3 | C46: 0.0498 | D46: 0.0501 | F46: 2019-11-01 | G46: 2019 | H46: Q4 | I46: 2019 Q4 | J46: 0 | L46: 0.0218 | M46: 0 | N46: 0 | Q46: 0
B47: 2023 Q4 | C47: 0.0549 | D47: 0.0548 | F47: 2019-12-01 | G47: 2019 | H47: Q4 | I47: 2019 Q4 | J47: 0 | L47: 0.0218 | M47: 0 | N47: 0 | Q47: 0
B48: 2024 Q1 | C48: 0.0549 | D48: 0.0548 | F48: 2020-01-01 | G48: 2020 | H48: Q1 | I48: 2020 Q1 | J48: 0 | L48: 0.0218 | M48: =ROUND(J48*L48/12,2) -> 0 | N48: =N47+K48+M48 -> 0 | Q48: =Q47+P48 -> 0
B49: 2024 Q2 | C49: 0.0549 | D49: 0.0598 | F49: 2020-02-01 | G49: 2020 | H49: Q1 | I49: 2020 Q1 | J49: 0 | L49: 0.0218 | M49: 0 | N49: 0 | Q49: 0
B50: 2024 Q3 | C50: 0.052 | D50: 0.0598 | F50: 2020-03-01 | G50: 2020 | H50: Q1 | I50: 2020 Q1 | J50: 0 | L50: 0.0218 | M50: 0 | N50: 0 | Q50: 0
B51: 2024 Q4 | C51: 0.044 | D51: 0.0455 | F51: 2020-04-01 | G51: 2020 | H51: Q2 | I51: 2020 Q2 | J51: 0 | L51: 0.0218 | M51: 0 | N51: 0 | Q51: 0
B52: 2025 Q1 | C52: 0.0364 | D52: 0.0423 | F52: 2020-05-01 | G52: 2020 | H52: Q2 | I52: 2020 Q2 | J52: 0 | L52: 0.0218 | M52: 0 | N52: 0 | Q52: 0
B53: 2025 Q2 | C53: 0.0316 | D53: 0.0423 | F53: 2020-06-01 | G53: 2020 | H53: Q2 | I53: 2020 Q2 | J53: 0 | L53: 0.0218 | M53: 0 | N53: 0 | Q53: 0
B54: 2025 Q3 | C54: =C53 -> 0.0316 | D54: 0.0423 | F54: 2020-07-01 | G54: 2020 | H54: Q3 | I54: 2020 Q3 | J54: 0 | L54: 0.0057 | M54: 0 | N54: 0 | Q54: 0
B55: 2025 Q4 | C55: =C54 -> 0.0316 | D55: 0.0423 | F55: 2020-08-01 | G55: 2020 | H55: Q3 | I55: 2020 Q3 | J55: 0 | L55: 0.0057 | M55: 0 | N55: 0 | Q55: 0
B56: 2026 Q1 | C56: 0.0316 | D56: 0.0423 | F56: 2020-09-01 | G56: 2020 | H56: Q3 | I56: 2020 Q3 | J56: 0 | L56: 0.0057 | M56: 0 | N56: 0 | Q56: 0
B57: 2026 Q2 | C57: 0.0316 | D57: 0.0423 | F57: 2020-10-01 | G57: 2020 | H57: Q4 | I57: 2020 Q4 | J57: 0 | L57: 0.0057 | M57: 0 | N57: 0 | Q57: 0
B58: 2026 Q3 | C58: 0.0316 | D58: 0.0423 | F58: 2020-11-01 | G58: 2020 | H58: Q4 | I58: 2020 Q4 | J58: 0 | L58: 0.0057 | M58: 0 | N58: 0 | Q58: 0
B59: 2026 Q4 | C59: 0.0316 | D59: 0.0423 | F59: 2020-12-01 | G59: 2020 | H59: =IF(MONTH(F59)=0,"",IF(MONTH(F59)<4,"Q1",IF(MONTH(F59)<7,"Q2",IF(MONTH(F59)<10,"Q3","Q4")))) -> Q4 | I59: 2020 Q4 | J59: 0 | L59: 0.0057 | M59: 0 | N59: 0 | Q59: 0
F60: 2021-01-01 | G60: 2021 | H60: Q1 | I60: 2021 Q1 | J60: =J59+K59 -> 0 | K60: 6665.83 | L60: =VLOOKUP(I60,$B$22:$D$59,2) -> 0.0057 | M60: 0 | N60: 6665.83 | P60: ='6. ICMIRR_2021'!$K$88/12 -> 17034.216 | Q60: 17034.216
B61: Note: 2025-2026 Interest rates are forecasted. | F61: 2021-02-01 | G61: 2021 | H61: Q1 | I61: 2021 Q1 | J61: 6665.83 | K61: 23246.59 | L61: 0.0057 | M61: 3.17 | N61: 29915.59 | P61: ='6. ICMIRR_2021'!$K$88/12 -> 17034.216 | Q61: 34068.43199
F62: 2021-03-01 | G62: 2021 | H62: Q1 | I62: 2021 Q1 | J62: 29912.42 | K62: 18096.05 | L62: 0.0057 | M62: 14.21 | N62: 48025.85 | P62: ='6. ICMIRR_2021'!$K$88/12 -> 17034.216 | Q62: 51102.64799
F63: 2021-04-01 | G63: 2021 | H63: Q2 | I63: 2021 Q2 | J63: 48008.47 | K63: 14393.76 | L63: 0.0057 | M63: 22.8 | N63: 62442.41 | P63: ='6. ICMIRR_2021'!$K$88/12 -> 17034.216 | Q63: 68136.86398
F64: 2021-05-01 | G64: 2021 | H64: Q2 | I64: 2021 Q2 | J64: 62402.23 | K64: 16875.46 | L64: 0.0057 | M64: 29.64 | N64: 79347.51 | P64: ='6. ICMIRR_2021'!$K$88/12 -> 17034.216 | Q64: 85171.07998
F65: 2021-06-01 | G65: 2021 | H65: Q2 | I65: 2021 Q2 | J65: 79277.69 | K65: 17254.93 | L65: 0.0057 | M65: 37.66 | N65: 96640.1 | P65: ='6. ICMIRR_2021'!$K$88/12 -> 17034.216 | Q65: 102205.296
F66: 2021-07-01 | G66: 2021 | H66: Q3 | I66: 2021 Q3 | J66: 96532.62 | K66: 16637.51 | L66: 0.0057 | M66: 45.85 | N66: 113323.46 | P66: ='6. ICMIRR_2021'!$K$88/12 -> 17034.216 | Q66: 119239.512
F67: 2021-08-01 | G67: 2021 | H67: Q3 | I67: 2021 Q3 | J67: 113170.13 | K67: 16823.33 | L67: 0.0057 | M67: 53.76 | N67: 130200.55 | P67: ='6. ICMIRR_2021'!$K$88/12 -> 17034.216 | Q67: 136273.728
F68: 2021-09-01 | G68: 2021 | H68: Q3 | I68: 2021 Q3 | J68: 129993.46 | K68: 16087.5 | L68: 0.0057 | M68: 61.75 | N68: 146349.8 | P68: ='6. ICMIRR_2021'!$K$88/12 -> 17034.216 | Q68: 153307.944
F69: 2021-10-01 | G69: 2021 | H69: Q4 | I69: 2021 Q4 | J69: 146080.96 | K69: 16490.26 | L69: 0.0057 | M69: 69.39 | N69: 162909.45 | P69: ='6. ICMIRR_2021'!$K$88/12 -> 17034.216 | Q69: 170342.16
F70: 2021-11-01 | G70: 2021 | H70: Q4 | I70: 2021 Q4 | J70: 162571.22 | K70: 16833.3 | L70: 0.0057 | M70: 77.22 | N70: 179819.97 | P70: ='6. ICMIRR_2021'!$K$88/12 -> 17034.216 | Q70: 187376.376
F71: 2021-12-01 | G71: 2021 | H71: =IF(MONTH(F71)=0,"",IF(MONTH(F71)<4,"Q1",IF(MONTH(F71)<7,"Q2",IF(MONTH(F71)<10,"Q3","Q4")))) -> Q4 | I71: 2021 Q4 | J71: 179404.52 | K71: 16444.82 | L71: 0.0057 | M71: 85.22 | N71: 196350.01 | P71: ='6. ICMIRR_2021'!$K$88/12 -> 17034.216 | Q71: 204410.5919
F72: 2022-01-01 | G72: =YEAR(F72) -> 2022 | H72: =IF(MONTH(F72)=0,"",IF(MONTH(F72)<4,"Q1",IF(MONTH(F72)<7,"Q2",IF(MONTH(F72)<10,"Q3","Q4")))) -> Q1 | I72: 2022 Q1 | J72: =J71+K71 -> 195849.34 | K72: 15534.23 | L72: =VLOOKUP(I72,$B$22:$D$59,2) -> 0.0057 | M72: =ROUND(J72*L72/12,2) -> 93.03 | N72: =N71+K72+M72 -> 211977.27 | P72: ='6. ICMIRR_2021'!$K$88/12 -> 17034.216 | Q72: =Q71+P72 -> 221444.8079
F73: 2022-02-01 | G73: 2022 | H73: Q1 | I73: 2022 Q1 | J73: 211383.57 | K73: 15300.78 | L73: 0.0057 | M73: 100.41 | N73: 227378.46 | P73: ='6. ICMIRR_2021'!$K$88/12 -> 17034.216 | Q73: 238479.0239
F74: 2022-03-01 | G74: 2022 | H74: Q1 | I74: 2022 Q1 | J74: 226684.35 | K74: 17716.52 | L74: 0.0057 | M74: 107.68 | N74: 245202.66 | P74: ='6. ICMIRR_2021'!$K$88/12 -> 17034.216 | Q74: 255513.2399
F75: 2022-04-01 | G75: 2022 | H75: Q2 | I75: 2022 Q2 | J75: 244400.87 | K75: 15179.93 | L75: 0.0102 | M75: 207.74 | N75: 260590.33 | P75: ='6. ICMIRR_2021'!$K$88/12 -> 17034.216 | Q75: 272547.4559
F76: 2022-05-01 | G76: 2022 | H76: Q2 | I76: 2022 Q2 | J76: 259580.8 | K76: 16667.24 | L76: 0.0102 | M76: 220.64 | N76: 277478.21 | P76: ='6. ICMIRR_2021'!$K$88/12 -> 17034.216 | Q76: 289581.6719
F77: 2022-06-01 | G77: 2022 | H77: Q2 | I77: 2022 Q2 | J77: 276248.04 | K77: 16922.96 | L77: 0.0102 | M77: 234.81 | N77: 294635.98 | P77: ='6. ICMIRR_2021'!$K$88/12 -> 17034.216 | Q77: 306615.8879
F78: 2022-07-01 | G78: 2022 | H78: Q3 | I78: 2022 Q3 | J78: 293171 | K78: 16921.86 | L78: 0.022 | M78: 537.48 | N78: 312095.32 | P78: ='6. ICMIRR_2021'!$K$88/12 -> 17034.216 | Q78: 323650.1039
F79: 2022-08-01 | G79: 2022 | H79: Q3 | I79: 2022 Q3 | J79: 310092.86 | K79: 17320.99 | L79: 0.022 | M79: 568.5 | N79: 329984.81 | P79: ='6. ICMIRR_2021'!$K$88/12 -> 17034.216 | Q79: 340684.3199
F80: 2022-09-01 | G80: 2022 | H80: Q3 | I80: 2022 Q3 | J80: 327413.85 | K80: 15940.96 | L80: 0.022 | M80: 600.26 | N80: 346526.03 | P80: ='6. ICMIRR_2021'!$K$88/12 -> 17034.216 | Q80: 357718.5359
F81: 2022-10-01 | G81: 2022 | H81: Q4 | I81: 2022 Q4 | J81: 343354.81 | K81: 16377.54 | L81: 0.0387 | M81: 1107.32 | N81: 364010.89 | P81: ='6. ICMIRR_2021'!$K$88/12 -> 17034.216 | Q81: 374752.7519
F82: 2022-11-01 | G82: 2022 | H82: Q4 | I82: 2022 Q4 | J82: 359732.35 | K82: 17086.58 | L82: 0.0387 | M82: 1160.14 | N82: 382257.61 | P82: ='6. ICMIRR_2021'!$K$88/12 -> 17034.216 | Q82: 391786.9679
F83: 2022-12-01 | G83: 2022 | H83: =IF(MONTH(F83)=0,"",IF(MONTH(F83)<4,"Q1",IF(MONTH(F83)<7,"Q2",IF(MONTH(F83)<10,"Q3","Q4")))) -> Q4 | I83: 2022 Q4 | J83: 376818.93 | K83: 16200.29 | L83: 0.0387 | M83: 1215.24 | N83: 399673.14 | P83: ='6. ICMIRR_2021'!$K$88/12 -> 17034.216 | Q83: 408821.1839
F84: 2023-01-01 | G84: =YEAR(F84) -> 2023 | H84: =IF(MONTH(F84)=0,"",IF(MONTH(F84)<4,"Q1",IF(MONTH(F84)<7,"Q2",IF(MONTH(F84)<10,"Q3","Q4")))) -> Q1 | I84: 2023 Q1 | J84: =J83+K83 -> 393019.22 | K84: 15903.23 | L84: =VLOOKUP(I84,$B$22:$D$59,2) -> 0.0473 | M84: =ROUND(J84*L84/12,2) -> 1549.15 | N84: =N83+K84+M84 -> 417125.52 | P84: ='6. ICMIRR_2021'!$K$88/12 -> 17034.216 | Q84: =Q83+P84 -> 425855.3999
F85: 2023-02-01 | G85: 2023 | H85: Q1 | I85: 2023 Q1 | J85: 408922.45 | K85: 15503.76 | L85: 0.0473 | M85: 1611.84 | N85: 434241.12 | P85: ='6. ICMIRR_2021'!$K$88/12 -> 17034.216 | Q85: 442889.6159
F86: 2023-03-01 | G86: 2023 | H86: Q1 | I86: 2023 Q1 | J86: 424426.21 | K86: 18345.31 | L86: 0.0473 | M86: 1672.95 | N86: 454259.38 | P86: ='6. ICMIRR_2021'!$K$88/12 -> 17034.216 | Q86: 459923.8319
F87: 2023-04-01 | G87: 2023 | H87: Q2 | I87: 2023 Q2 | J87: 442771.52 | K87: 13728.66 | L87: 0.0498 | M87: 1837.5 | N87: 469825.54 | P87: ='6. ICMIRR_2021'!$K$88/12 -> 17034.216 | Q87: 476958.0479
F88: 2023-05-01 | G88: 2023 | H88: Q2 | I88: 2023 Q2 | J88: 456500.18 | K88: 18355.32 | L88: 0.0498 | M88: 1894.48 | N88: 490075.34 | P88: ='6. ICMIRR_2021'!$K$88/12 -> 17034.216 | Q88: 493992.2639
F89: 2023-06-01 | G89: 2023 | H89: Q2 | I89: =CONCATENATE(G89," ",H89) -> 2023 Q2 | J89: 474855.5 | K89: 15032.25 | L89: 0.0498 | M89: 1970.65 | N89: 507078.24 | P89: ='6. ICMIRR_2021'!$K$88/12 -> 17034.216 | Q89: 511026.4799
F90: 2023-07-01 | G90: 2023 | H90: Q3 | I90: 2023 Q3 | J90: 489887.75 | K90: 16577.86 | L90: 0.0498 | M90: 2033.03 | N90: 525689.13 | P90: ='6. ICMIRR_2021'!$K$88/12 -> 17034.216 | Q90: 528060.6959
F91: 2023-08-01 | G91: 2023 | H91: Q3 | I91: 2023 Q3 | J91: 506465.61 | K91: 17986.58 | L91: 0.0498 | M91: 2101.83 | N91: 545777.54 | P91: ='6. ICMIRR_2021'!$K$88/12 -> 17034.216 | Q91: 545094.9119
F92: 2023-09-01 | G92: 2023 | H92: Q3 | I92: 2023 Q3 | J92: 524452.19 | K92: 15772.77 | L92: 0.0498 | M92: 2176.48 | N92: 563726.79 | P92: ='6. ICMIRR_2021'!$K$88/12 -> 17034.216 | Q92: 562129.1279
F93: 2023-10-01 | G93: 2023 | H93: Q4 | I93: 2023 Q4 | J93: 540224.96 | K93: 17596.95 | L93: 0.0549 | M93: 2471.53 | N93: 583795.27 | P93: ='6. ICMIRR_2021'!$K$88/12 -> 17034.216 | Q93: 579163.3438
F94: 2023-11-01 | G94: 2023 | H94: Q4 | I94: 2023 Q4 | J94: 557821.91 | K94: 16335.29 | L94: 0.0549 | M94: 2552.04 | N94: 602682.6 | P94: ='6. ICMIRR_2021'!$K$88/12 -> 17034.216 | Q94: 596197.5598
F95: 2023-12-01 | G95: 2023 | H95: =IF(MONTH(F95)=0,"",IF(MONTH(F95)<4,"Q1",IF(MONTH(F95)<7,"Q2",IF(MONTH(F95)<10,"Q3","Q4")))) -> Q4 | I95: 2023 Q4 | J95: 574157.2 | K95: 16481.34 | L95: 0.0549 | M95: 2626.77 | N95: 621790.71 | P95: ='6. ICMIRR_2021'!$K$88/12 -> 17034.216 | Q95: 613231.7758
F96: 2024-01-01 | G96: =YEAR(F96) -> 2024 | H96: =IF(MONTH(F96)=0,"",IF(MONTH(F96)<4,"Q1",IF(MONTH(F96)<7,"Q2",IF(MONTH(F96)<10,"Q3","Q4")))) -> Q1 | I96: 2024 Q1 | J96: =J95+K95 -> 590638.54 | K96: 15711.19 | L96: =VLOOKUP(I96,$B$22:$D$59,2) -> 0.0549 | M96: =ROUND(J96*L96/12,2) -> 2702.17 | N96: =N95+K96+M96 -> 640204.07 | P96: ='6. ICMIRR_2021'!$K$88/12 -> 17034.216 | Q96: =Q95+P96 -> 630265.9918
F97: 2024-02-01 | G97: 2024 | H97: Q1 | I97: 2024 Q1 | J97: 606349.73 | K97: 15492.9 | L97: 0.0549 | M97: 2774.05 | N97: 658471.02 | P97: ='6. ICMIRR_2021'!$K$88/12 -> 17034.216 | Q97: 647300.2078
F98: 2024-03-01 | G98: 2024 | H98: Q1 | I98: 2024 Q1 | J98: 621842.63 | K98: 17383.58 | L98: 0.0549 | M98: 2844.93 | N98: 678699.53 | P98: ='6. ICMIRR_2021'!$K$88/12 -> 17034.216 | Q98: 664334.4238
F99: 2024-04-01 | G99: 2024 | H99: Q2 | I99: 2024 Q2 | J99: 639226.21 | K99: 16372.66 | L99: 0.0549 | M99: 2924.46 | N99: 697996.65 | P99: ='6. ICMIRR_2021'!$K$88/12 -> 17034.216 | Q99: 681368.6398
F100: 2024-05-01 | G100: 2024 | H100: Q2 | I100: 2024 Q2 | J100: 655598.87 | K100: 17040.05 | L100: 0.0549 | M100: 2999.36 | N100: 718036.06 | P100: ='6. ICMIRR_2021'!$K$88/12 -> 17034.216 | Q100: 698402.8558
F101: 2024-06-01 | G101: 2024 | H101: Q2 | I101: 2024 Q2 | J101: 672638.92 | K101: 15951.1 | L101: 0.0549 | M101: 3077.32 | N101: 737064.48 | P101: ='6. ICMIRR_2021'!$K$88/12 -> 17034.216 | Q101: 715437.0718
F102: 2024-07-01 | G102: 2024 | H102: Q3 | I102: 2024 Q3 | J102: 688590.02 | K102: 18350.06 | L102: 0.052 | M102: 2983.89 | N102: 758398.43 | P102: ='6. ICMIRR_2021'!$K$88/12 -> 17034.216 | Q102: 732471.2878
F103: 2024-08-01 | G103: 2024 | H103: Q3 | I103: 2024 Q3 | J103: 706940.08 | K103: 16465.8 | L103: 0.052 | M103: 3063.41 | N103: 777927.64 | P103: ='6. ICMIRR_2021'!$K$88/12 -> 17034.216 | Q103: 749505.5038
F104: 2024-09-01 | G104: 2024 | H104: Q3 | I104: 2024 Q3 | J104: 723405.88 | K104: 15994.96 | L104: 0.052 | M104: 3134.76 | N104: 797057.36 | P104: ='6. ICMIRR_2021'!$K$88/12 -> 17034.216 | Q104: 766539.7198
F105: 2024-10-01 | G105: 2024 | H105: Q4 | I105: 2024 Q4 | J105: 739400.84 | K105: 18311.86 | L105: 0.044 | M105: 2711.14 | N105: 818080.36 | P105: ='6. ICMIRR_2021'!$K$88/12 -> 17034.216 | Q105: 783573.9358
F106: 2024-11-01 | G106: 2024 | H106: Q4 | I106: 2024 Q4 | J106: 757712.7 | K106: 15499.26 | L106: 0.044 | M106: 2778.28 | N106: 836357.9 | P106: ='6. ICMIRR_2021'!$K$88/12 -> 17034.216 | Q106: 800608.1518
F107: 2024-12-01 | G107: 2024 | H107: =IF(MONTH(F107)=0,"",IF(MONTH(F107)<4,"Q1",IF(MONTH(F107)<7,"Q2",IF(MONTH(F107)<10,"Q3","Q4")))) -> Q4 | I107: 2024 Q4 | J107: 773211.96 | K107: 17103.7 | L107: 0.044 | M107: 2835.11 | N107: 856296.71 | P107: ='6. ICMIRR_2021'!$K$88/12 -> 17034.216 | Q107: 817642.3678
F108: 2025-01-01 | G108: =YEAR(F108) -> 2025 | H108: =IF(MONTH(F108)=0,"",IF(MONTH(F108)<4,"Q1",IF(MONTH(F108)<7,"Q2",IF(MONTH(F108)<10,"Q3","Q4")))) -> Q1 | I108: 2025 Q1 | J108: =J107+K107 -> 790315.66 | K108: 16668.51 | L108: =VLOOKUP(I108,$B$22:$D$59,2) -> 0.0364 | M108: =ROUND(J108*L108/12,2) -> 2397.29 | N108: =N107+K108+M108 -> 875362.51 | P108: ='6. ICMIRR_2021'!$K$88/12 -> 17034.216 | Q108: =Q107+P108 -> 834676.5838
F109: 2025-02-01 | G109: 2025 | H109: Q1 | I109: 2025 Q1 | J109: 806984.17 | K109: 15085.7 | L109: 0.0364 | M109: 2447.85 | N109: 892896.06 | P109: ='6. ICMIRR_2021'!$K$88/12 -> 17034.216 | Q109: 851710.7998
F110: 2025-03-01 | G110: 2025 | H110: Q1 | I110: 2025 Q1 | J110: 822069.87 | K110: 18638.85 | L110: 0.0364 | M110: 2493.61 | N110: 914028.52 | P110: ='6. ICMIRR_2021'!$K$88/12 -> 17034.216 | Q110: 868745.0158
F111: 2025-04-01 | G111: 2025 | H111: Q2 | I111: 2025 Q2 | J111: 840708.72 | K111: 16502.23 | L111: 0.0316 | M111: 2213.87 | N111: 932744.62 | P111: ='6. ICMIRR_2021'!$K$88/12 -> 17034.216 | Q111: 885779.2318
F112: 2025-05-01 | G112: 2025 | H112: Q2 | I112: 2025 Q2 | J112: 857210.95 | K112: 16945.282 | L112: =VLOOKUP(I112,$B$22:$D$59,2) -> 0.0316 | M112: 2257.32 | N112: 951947.222 | P112: ='6. ICMIRR_2021'!$K$88/12 -> 17034.216 | Q112: 902813.4478
F113: 2025-06-01 | G113: 2025 | H113: Q2 | I113: 2025 Q2 | J113: 874156.232 | K113: 17061.18668 | L113: 0.0316 | M113: 2301.94 | N113: 971310.3487 | P113: ='6. ICMIRR_2021'!$K$88/12 -> 17034.216 | Q113: 919847.6638
F114: 2025-07-01 | G114: 2025 | H114: Q3 | I114: 2025 Q3 | J114: 891217.4187 | K114: 17877.71561 | L114: 0.0316 | M114: 2346.87 | N114: 991534.9343 | P114: ='6. ICMIRR_2021'!$K$88/12 -> 17034.216 | Q114: 936881.8798
F115: 2025-08-01 | G115: 2025 | H115: Q3 | I115: 2025 Q3 | J115: 909095.1343 | K115: 17119.24721 | L115: 0.0316 | M115: 2393.95 | N115: 1011048.132 | P115: ='6. ICMIRR_2021'!$K$88/12 -> 17034.216 | Q115: 953916.0957
F116: 2025-09-01 | G116: 2025 | H116: Q3 | I116: 2025 Q3 | J116: 926214.3815 | K116: 16440.07743 | L116: 0.0316 | M116: 2439.03 | N116: 1029927.239 | P116: ='6. ICMIRR_2021'!$K$88/12 -> 17034.216 | Q116: 970950.3117
F117: 2025-10-01 | G117: 2025 | H117: Q4 | I117: 2025 Q4 | J117: 942654.4589 | K117: 17055.0544 | L117: 0.0316 | M117: 2482.32 | N117: 1049464.613 | P117: ='6. ICMIRR_2021'!$K$88/12 -> 17034.216 | Q117: 987984.5277
F118: 2025-11-01 | G118: 2025 | H118: Q4 | I118: 2025 Q4 | J118: 959709.5133 | K118: 16671.97008 | L118: 0.0316 | M118: 2527.24 | N118: 1068663.823 | P118: ='6. ICMIRR_2021'!$K$88/12 -> 17034.216 | Q118: 1005018.744
F119: 2025-12-01 | G119: 2025 | H119: =IF(MONTH(F119)=0,"",IF(MONTH(F119)<4,"Q1",IF(MONTH(F119)<7,"Q2",IF(MONTH(F119)<10,"Q3","Q4")))) -> Q4 | I119: 2025 Q4 | J119: 976381.4834 | K119: 17074.98862 | L119: 0.0316 | M119: 2571.14 | N119: 1088309.952 | P119: ='6. ICMIRR_2021'!$K$88/12 -> 17034.216 | Q119: 1022052.96
F120: 2026-01-01 | G120: =YEAR(F120) -> 2026 | H120: =IF(MONTH(F120)=0,"",IF(MONTH(F120)<4,"Q1",IF(MONTH(F120)<7,"Q2",IF(MONTH(F120)<10,"Q3","Q4")))) -> Q1 | I120: 2026 Q1 | J120: =J119+K119 -> 993456.472 | K120: 16998.73063 | L120: =VLOOKUP(I120,$B$22:$D$59,2) -> 0.0316 | M120: =ROUND(J120*L120/12,2) -> 2616.1 | N120: =N119+K120+M120 -> 1107924.783 | P120: ='6. ICMIRR_2021'!$K$88/12 -> 17034.216 | Q120: =Q119+P120 -> 1039087.176
F121: 2026-02-01 | G121: 2026 | H121: Q1 | I121: 2026 Q1 | J121: 1010455.203 | K121: 15245.14978 | L121: 0.0316 | M121: 2660.87 | N121: 1125830.802 | P121: ='6. ICMIRR_2021'!$K$88/12 -> 17034.216 | Q121: 1056121.392
F122: 2026-03-01 | G122: 2026 | H122: Q1 | I122: 2026 Q1 | J122: 1025700.352 | K122: 16816.28535 | L122: 0.0316 | M122: 2701.01 | N122: 1145348.098 | P122: ='6. ICMIRR_2021'!$K$88/12 -> 17034.216 | Q122: 1073155.608
F123: 2026-04-01 | G123: 2026 | H123: Q2 | I123: 2026 Q2 | J123: 1042516.638 | K123: 16543.62389 | L123: 0.0316 | M123: 2745.29 | N123: 1164637.012 | P123: ='6. ICMIRR_2021'!$K$88/12 -> 17034.216 | Q123: 1090189.824
F124: 2026-05-01 | G124: 2026 | H124: Q2 | I124: 2026 Q2 | J124: 1059060.262 | K124: 17056.56283 | L124: 0.0316 | M124: 2788.86 | N124: 1184482.434 | P124: ='6. ICMIRR_2021'!$K$88/12 -> 17034.216 | Q124: 1107224.04
F125: 2026-06-01 | G125: 2026 | H125: Q2 | I125: 2026 Q2 | J125: 1076116.824 | K125: 17174.30002 | L125: 0.0316 | M125: 2833.77 | N125: 1204490.505 | P125: ='6. ICMIRR_2021'!$K$88/12 -> 17034.216 | Q125: 1124258.256
F126: 2026-07-01 | G126: 2026 | H126: Q3 | I126: 2026 Q3 | J126: 1093291.125 | K126: 18001.44364 | L126: 0.0316 | M126: 2879 | N126: 1225370.948 | P126: ='6. ICMIRR_2021'!$K$88/12 -> 17034.216 | Q126: 1141292.472
F127: 2026-08-01 | G127: 2026 | H127: Q3 | I127: 2026 Q3 | J127: 1111292.568 | K127: 17234.48073 | L127: 0.0316 | M127: 2926.4 | N127: 1245531.829 | P127: ='6. ICMIRR_2021'!$K$88/12 -> 17034.216 | Q127: 1158326.688
F128: 2026-09-01 | G128: 2026 | H128: Q3 | I128: 2026 Q3 | J128: 1128527.049 | K128: 16546.85261 | L128: 0.0316 | M128: 2971.79 | N128: 1265050.472 | P128: ='6. ICMIRR_2021'!$K$88/12 -> 17034.216 | Q128: 1175360.904
F129: 2026-10-01 | G129: 2026 | H129: Q4 | I129: 2026 Q4 | J129: 1145073.902 | K129: 17162.62788 | L129: 0.0316 | M129: 3015.36 | N129: 1285228.459 | P129: ='6. ICMIRR_2021'!$K$88/12 -> 17034.216 | Q129: 1192395.12
F130: 2026-11-01 | G130: 2026 | H130: Q4 | I130: 2026 Q4 | J130: 1162236.529 | K130: 16774.75653 | L130: 0.0316 | M130: 3060.56 | N130: 1305063.776 | P130: ='6. ICMIRR_2021'!$K$88/12 -> 17034.216 | Q130: 1209429.336
F131: 2026-12-01 | G131: 2026 | H131: =IF(MONTH(F131)=0,"",IF(MONTH(F131)<4,"Q1",IF(MONTH(F131)<7,"Q2",IF(MONTH(F131)<10,"Q3","Q4")))) -> Q4 | I131: 2026 Q4 | J131: 1179011.286 | K131: 17181.52868 | L131: 0.0316 | M131: 3104.73 | N131: 1325350.035 | P131: ='6. ICMIRR_2021'!$K$88/12 -> 17034.216 | Q131: 1226463.552

Sheet 8. Opex Interest Annual
B13: This worksheet calculates the interest on amortization/depreciation expense, in the absence of monthly data.
B16: Sheet 8: Interest on Amortization (Annual Data)
B21: Year | D21: OM&A | F21: Amortization Expense | H21: Cumulative OM&A and Amortization Expense | J21: Average Cumulative OM&A and Amortization Expense | L21: Average Annual Prescribed Interest Rate for Deferral and Variance Accounts (from Sheet 7) | N21: Simple Interest on OM&A and Amortization Expenses
F22: (from Sheet 6)
B23: 2018 | D23: 0 | H23: =D23+F23 -> 0 | J23: =H23/2 -> 0 | L23: =AVERAGE('7. Rate Riders Revs'!C24:C27) -> 0.018625 | N23: =J23*L23 -> 0
B24: 2019 | D24: 0 | H24: =H23+D24+F24 -> 0 | J24: =(H24+H23)/2 -> 0 | L24: =AVERAGE('7. Rate Riders Revs'!C28:C31) -> 0.022475 | N24: =J24*L24 -> 0
B25: 2020 | D25: 0 | H25: =H24+D25+F25 -> 0 | J25: =(H25+H24)/2 -> 0 | L25: =AVERAGE('7. Rate Riders Revs'!C32:C35) -> 0.01375 | N25: 0
B26: 2021 | D26: 0 | F26: =-'4. ICM_Assets_and_Rate_Base'!I357 -> 67915.82292 | H26: 67915.82292 | J26: 33957.91146 | L26: =AVERAGE('7. Rate Riders Revs'!C36:C39) -> 0.0057 | N26: 193.5600953
B27: 2022 | D27: 0 | F27: =-'4. ICM_Assets_and_Rate_Base'!K357 -> 67915.82292 | H27: =H26+D27+F27 -> 135831.6458 | J27: 101873.7344 | L27: =AVERAGE('7. Rate Riders Revs'!C40:C43) -> 0.01915 | N27: 1950.882013
B28: 2023 | D28: 0 | F28: =-'4. ICM_Assets_and_Rate_Base'!M357 -> 67915.82292 | H28: 203747.4688 | J28: 169789.5573 | L28: =AVERAGE('7. Rate Riders Revs'!C44:C47) -> 0.05045 | N28: 8565.883166
B29: 2024 | D29: 0 | F29: =-'4. ICM_Assets_and_Rate_Base'!O357 -> 67915.82292 | H29: 271663.2917 | J29: 237705.3802 | L29: =AVERAGE('7. Rate Riders Revs'!C48:C51) -> 0.05145 | N29: 12229.94181
B30: 2025 | D30: 0 | F30: =-'4. ICM_Assets_and_Rate_Base'!Q357 -> 61359.98552 | H30: 333023.2772 | J30: 302343.2844 | L30: =AVERAGE('7. Rate Riders Revs'!C52:C55) -> 0.0328 | N30: 9916.85973
B31: 2026 | D31: 0 | F31: =F30 -> 61359.98552 | H31: 394383.2627 | J31: 363703.27 | L31: =AVERAGE('7. Rate Riders Revs'!C56:C59) -> 0.0316 | N31: =J31*L31 -> 11493.02333
B34: Cumulative Interest to 2018 | N34: =SUM($N$23:N23) -> 0
B35: Cumulative Interest to 2019 | N35: =SUM($N$23:N24) -> 0
B36: Cumulative Interest to 2020 | N36: =SUM($N$23:N25) -> 0
B37: Cumulative Interest to 2021 | N37: =SUM($N$23:N26) -> 193.5600953
B38: Cumulative Interest to 2022 | N38: =SUM($N$23:N27) -> 2144.442109
B39: Cumulative Interest to 2023 | N39: =SUM($N$23:N28) -> 10710.32527
B40: Cumulative Interest to 2024 | N40: =SUM($N$23:N29) -> 22940.26709
B41: Cumulative Interest to 2025 | N41: =SUM($N$23:N30) -> 32857.12682
B42: Cumulative Interest to 2026 | N42: =SUM($N$23:N31) -> 44350.15015

Sheet 9. IRR
B14: This worksheet calculates the ICM Incremental Revenue Requirement.
B17: Sheet 9: ICM Incremental Revenue Requirement
G20: 2018 | I20: 2019 | K20: 2020 | M20: 2021 | O20: 2022 | Q20: 2023 | S20: 2024 | U20: 2025 | W20: 2026 | Y20: Total
C22: Deferred and forecasted ICM Incremental Revenue Requirement (from Sheet 6) | M22: ='6. ICMIRR_2021'!$F$88 -> 219399.2672 | O22: ='6. ICMIRR_2021'!$F$88 -> 219399.2672 | Q22: ='6. ICMIRR_2021'!$F$88 -> 219399.2672 | S22: ='6. ICMIRR_2021'!$F$88 -> 219399.2672 | U22: ='6. ICMIRR_2021'!$F$88 -> 219399.2672 | W22: ='6. ICMIRR_2021'!$F$88 -> 219399.2672 | Y22: =SUM(G22:W22) -> 1316395.603
C24: Interest on Deferred and forecasted Amortization Expense (Sheet 8) | G24: ='8. Opex Interest Annual'!$N$23 -> 0 | I24: ='8. Opex Interest Annual'!$N$24 -> 0 | K24: ='8. Opex Interest Annual'!$N$25 -> 0 | M24: ='8. Opex Interest Annual'!$N$26 -> 193.5600953 | O24: ='8. Opex Interest Annual'!$N$27 -> 1950.882013 | Q24: ='8. Opex Interest Annual'!$N$28 -> 8565.883166 | S24: ='8. Opex Interest Annual'!$N$29 -> 12229.94181 | U24: ='8. Opex Interest Annual'!$N$30 -> 9916.85973 | W24: ='8. Opex Interest Annual'!$N$31 -> 11493.02333 | Y24: =SUM(G24:W24) -> 44350.15015
C27: ICM Rate Rider Revenues (from Sheet 7) | G27: =SUM('7. Rate Riders Revs'!K26:K35) -> 0 | I27: =SUM('7. Rate Riders Revs'!K36:K47) -> 0 | K27: =SUM('7. Rate Riders Revs'!K48:K59) -> 0 | M27: =SUM('7. Rate Riders Revs'!K60:K71) -> 195849.34 | O27: =SUM('7. Rate Riders Revs'!K72:K83) -> 197169.88 | Q27: =SUM('7. Rate Riders Revs'!K84:K95) -> 197619.32 | S27: =SUM('7. Rate Riders Revs'!K96:K107) -> 199677.12 | U27: =SUM('7. Rate Riders Revs'!K108:K119) -> 203140.812 | W27: =SUM('7. Rate Riders Revs'!K120:K131) -> 202736.3426 | Y27: =SUM(G27:W27) -> 1196192.815
C29: ICM Rate Rider Interest (from Sheet 7) | G29: =SUM('7. Rate Riders Revs'!M27:M35) -> 0 | I29: =SUM('7. Rate Riders Revs'!M36:M47) -> 0 | K29: =SUM('7. Rate Riders Revs'!M48:M59) -> 0 | M29: =SUM('7. Rate Riders Revs'!M60:M71) -> 500.67 | O29: =SUM('7. Rate Riders Revs'!M72:M83) -> 6153.25 | Q29: =SUM('7. Rate Riders Revs'!M84:M95) -> 24498.25 | S29: =SUM('7. Rate Riders Revs'!M96:M107) -> 34828.88 | U29: =SUM('7. Rate Riders Revs'!M108:M119) -> 28872.43 | W29: =SUM('7. Rate Riders Revs'!M120:M131) -> 34303.74 | Y29: =SUM(G29:W29) -> 129157.22
C31: Net Deferred Revenue Requirement | G31: =(G22+G24)-(G27+G29) -> 0 | I31: =(I22+I24)-(I27+I29) -> 0 | K31: =(K22+K24)-(K27+K29) -> 0 | M31: =(M22+M24)-(M27+M29) -> 23242.81727 | O31: =(O22+O24)-(O27+O29) -> 18027.01919 | Q31: =(Q22+Q24)-(Q27+Q29) -> 5847.580339 | S31: =(S22+S24)-(S27+S29) -> -2876.791014 | U31: =(U22+U24)-(U27+U29) -> -2697.115123 | W31: =(W22+W24)-(W27+W29) -> -6147.792062 | Y31: =(Y22+Y24)-(Y27+Y29) -> 35395.7186
